Cogmind - Beta 17 @@@ ROGUE MODE // 2026.08.21 @ 06:04:00 Player: 4R-ZE3 Result: Escaped! Performance ------------- Evolutions (9) 4500 Regions Visited (31) 6200 Robots Destroyed (367) 1835 Value Destroyed (20227) 20227 Prototype IDs (64) 1280 Alien Tech Used (2) 400 Bonus (28806) 28806 TOTAL SCORE: 63248 Bonus ------- High Alert Combat Kills 3730 Follower Combat Kills 1743 Aligned with FarCom 300 Met Data Miner 300 Met Zhirov 300 Met Warlord at Base 500 MAIN.C Attacked Warlord 500 Warlord Defense Kills 602 Built Enhanced Grunts 300 A7 Reached Mainframe 300 Met R17 at Cetus 500 Met R17 at Research 2000 Met Warlord at Research 2000 Invited to Help at Command 2000 Destroyed MAIN.C Guards 500 Met MAIN.C 5000 Hacked MAIN.C 300 Destroyed MAIN.C Shell 5000 Win 3000 Friendly Fire -69 Cogmind --------- Core Integrity 549/1600 Matter 289/300 Energy 99/100 System Corruption 79% Temperature Cool (0) Movement Core (50) Location To Epsilon Eridani Parts ------- > --- POWER (3) -------- (None) > --- PROPULSION (8) --- (None) > --- UTILITY (13) ----- (None) > --- WEAPON (2) ------- (None) > --- INVENTORY (5) ---- Armored Heavy Treads Layered Heavy Armor Plating Peak State ------------ > --- POWER ------------ Quantum Reactor Vortex Chain Reactor > --- PROPULSION ------- Heavy Siege Treads Centrium Heavy Treads Centrium Heavy Treads Centrium Heavy Treads > --- UTILITY ---------- Advanced Power Amplifier Advanced Cooling System Advanced Cooling System Huge Storage Unit 0b10 Decoder Chip [Scout] Experimental Targeting Computer Quantum Capacitor Centrium Heavy Armor Plating Graphene Brace Experimental Thermal Shield Advanced Force Field > --- WEAPON ----------- Compact HERF Cannon Enhanced Nova Cannon > --- INVENTORY -------- Particle Reactor Particle Reactor Particle Reactor Quantum Reactor Megatreads Advanced Power Amplifier Precision Energy Filter Advanced Particle Charger Quantum Capacitor Advanced ECM Suite Centrium Medium Armor Plating Advanced Focal Shield Advanced Force Field Advanced Remote Shield Compact HERF Cannon Enhanced Nova Cannon Micro-nuke Launcher Advanced Remote Datajack [Rating: 219] Favorites ----------- Power Quantum Reactor Engine Light Deuterium Engine Power Core Light Nuclear Core Reactor Quantum Reactor Propulsion Light Treads Treads Light Treads Leg Myomer Leg Wheel Compact Wheel Hover Unit Aerolev Unit Flight Unit Flying Fortress v7 Utility Huge Storage Unit Device Advanced Heat Sink Storage Huge Storage Unit Processor Experimental Targeting Computer Hackware Hacking Suite Protection Centrium Medium Armor Plating Weapon Advanced Variable Charge Gun Energy Gun Advanced Variable Charge Gun Energy Cannon Particle Cannon Ballistic Gun Light Assault Rifle Launcher Heavy Rocket Launcher Special Weapon Advanced Remote Datajack Slashing Weapon Great Axe Special Melee Weapon Improved Datajack Build | -11 -10 -10 -9 -9 -9 -8 -8 -7 -7 -7 -7 -7 -7 -6 -6 -6 -6 -5 -5 -5 -5 -4 -4 -4 -4 -4 -3 -3 -2 -1 -1 ------- Run | Yrd Mat Min Mat Min Exi Min Mat Fac Was Fac Low Low Dat Pro Fac Ext Cet Fac Upp Upp Zhi Pro Fac Upp Upp War Pro Res Res Acc Com Slots Evolved 18 | . . . 2 . . . 2 2 . . . . . . 2 . . 2 . . . . 2 . . . . 2 2 2 . Power 2 | . . . . . . . . 1 . . . . . . . . . . . . . . . . . . . 1 . . . Propulsion 5 | . . . . . . . 2 . . . . . . . 1 . . 1 . . . . . . . . . 1 . . . Utility 11 | . . . 2 . . . . 1 . . . . . . 1 . . 1 . . . . 2 . . . . . 2 2 . Weapon . | . . . . . . . . . . . . . . . . . . . . . . . . . . . . . . . . Parts Attached 270 | 6 11 1 11 . . 1 14 9 2 4 3 . . . 6 16 21 9 1 2 5 1 21 13 4 26 4 13 24 10 32 Power 35 | 1 3 1 1 . . . 2 1 . . . . . . . 2 4 . . . 1 . 2 1 1 4 . 1 . 1 9 Engine 9 | 1 3 . 1 . . . 2 1 . . . . . . . . . . . . . . . . . . . . . . 1 Core 4 | . . 1 . . . . . . . . . . . . . 1 . . . . . . . . 1 1 . . . . . Reactor 22 | . . . . . . . . . . . . . . . . 1 4 . . . 1 . 2 1 . 3 . 1 . 1 8 Propulsion 94 | 2 2 . 6 . . . 8 1 . . . . . . 3 9 4 1 . . 1 . 8 6 . 15 2 5 10 2 9 Treads 49 | 2 2 . 5 . . . 8 . . . . . . . . 5 4 1 . . 1 . 2 2 . . . . 6 2 9 Leg 27 | . . . . . . . . . . . . . . . . . . . . . . . . 1 . 15 2 5 4 . . Wheel 12 | . . . 1 . . . . . . . . . . . . 2 . . . . . . 6 3 . . . . . . . Hover 1 | . . . . . . . . . . . . . . . 1 . . . . . . . . . . . . . . . . Flight 5 | . . . . . . . . 1 . . . . . . 2 2 . . . . . . . . . . . . . . . Utility 104 | 1 4 . 3 . . 1 2 5 2 4 1 . . . 2 3 8 8 1 2 3 1 7 6 2 7 2 4 9 6 10 Device 56 | . 2 . . . . 1 . 1 1 2 . . . . . 2 2 6 1 1 . . 3 4 1 5 2 4 7 4 7 Storage 7 | 1 2 . . . . . . 1 . . . . . . . 1 . . . . . . . . . . . . . 1 1 Processor 13 | . . . 1 . . . . . 1 2 . . . . . . . 2 . 1 . . 1 1 . 1 . . . 1 2 Hackware 10 | . . . . . . . . 3 . . . . . . 1 . 4 . . . . . 2 . . . . . . . . Protection 18 | . . . 2 . . . 2 . . . 1 . . . 1 . 2 . . . 3 1 1 1 1 1 . . 2 . . Artifact . | . . . . . . . . . . . . . . . . . . . . . . . . . . . . . . . . Weapon 37 | 2 2 . 1 . . . 2 2 . . 2 . . . 1 2 5 . . . . . 4 . 1 . . 3 5 1 4 Energy Gun 11 | 1 . . . . . . . . . . . . . . . . 5 . . . . . . . 1 . . 2 1 . 1 Energy Cannon 17 | . 2 . 1 . . . 2 . . . . . . . 1 1 . . . . . . 3 . . . . 1 3 1 2 Ballistic Gun 1 | 1 . . . . . . . . . . . . . . . . . . . . . . . . . . . . . . . Ballistic Cannon . | . . . . . . . . . . . . . . . . . . . . . . . . . . . . . . . . Launcher 4 | . . . . . . . . . . . 2 . . . . . . . . . . . 1 . . . . . 1 . . Special Weapon 1 | . . . . . . . . . . . . . . . . . . . . . . . . . . . . . . . 1 Impact Weapon . | . . . . . . . . . . . . . . . . . . . . . . . . . . . . . . . . Slashing Weapon 2 | . . . . . . . . 2 . . . . . . . . . . . . . . . . . . . . . . . Piercing Weapon . | . . . . . . . . . . . . . . . . . . . . . . . . . . . . . . . . Special Melee Weapon 1 | . . . . . . . . . . . . . . . . 1 . . . . . . . . . . . . . . . Unidentified Prototypes 23 | . . . . . . . . . 1 . . . . . 2 . 4 . . . 3 . 1 1 . 5 . 1 2 1 2 Corrupted Parts 10 | . . . . . . . . . . . . . . . . . 9 . . . . . . . . . . . . . 1 System Corruption 63 | . . . . . . . . . . . . . . . . . 50 . . . . . . . . . . . . . 13 Parts Lost 76 | . 3 . 5 . . . 2 . . . . . . . . 3 1 . 2 1 . 1 16 7 1 2 1 . 3 1 27 Power 19 | . 2 . 1 . . . 1 . . . . . . . . 1 . . 1 . . . 3 2 1 . . . . . 7 Propulsion 21 | . 1 . 3 . . . . . . . . . . . . 2 . . 1 . . . 6 2 . . . . . 1 5 Utility 26 | . . . . . . . . . . . . . . . . . 1 . . 1 . . 5 3 . 2 . . 2 . 12 Weapon 10 | . . . 1 . . . 1 . . . . . . . . . . . . . . 1 2 . . . 1 . 1 . 3 Highest Loss Streak 14 | . 2 . 3 . . . 1 . . . . . . . . 1 1 . 1 1 . 1 6 4 1 1 1 . 2 1 14 To Critical Strikes 2 | . . . 1 . . . . . . . . . . . . . . . . . . . 1 . . . . . . . . Average Backups 18 | 1 4 14 18 20 18 17 16 13 14 14 15 15 15 15 14 16 21 23 22 21 23 24 21 18 20 22 23 23 20 18 15 Power 2 | . . 2 1 1 1 1 . . . . . . . . . 1 1 3 2 2 2 3 2 1 1 3 4 4 3 3 3 Propulsion 2 | 1 2 3 2 3 2 3 3 4 4 4 5 4 4 4 2 2 3 1 1 1 . 1 1 3 5 2 4 3 2 2 1 Utility 9 | . . 5 9 10 9 9 8 8 8 7 8 8 8 8 8 9 9 13 13 12 13 14 11 8 7 8 7 9 9 9 7 Weapon 4 | . 1 4 4 6 5 4 3 1 2 2 2 2 3 3 3 2 5 6 6 6 6 6 6 5 6 7 7 6 4 2 2 Tool/Special . | . . . . . . . . . . . . . . . . . . . . . . . . . . . . . . . . Unused Backups 60 | . . . 1 . 4 . 5 . 1 . . 1 . . 2 3 10 5 . . . . . . . 3 3 4 3 2 13 Power 12 | . . . . . . . . . . . . . . . . . 2 . . . . . . . . 1 1 2 1 . 5 Propulsion 14 | . . . 1 . 1 . 1 . . . . 1 . . 2 1 . . . . . . . . . 2 1 . 1 . 3 Utility 21 | . . . . . 1 . 3 . 1 . . . . . . 2 2 5 . . . . . . . . 1 . . 1 5 Weapon 12 | . . . . . 2 . 1 . . . . . . . . . 6 . . . . . . . . . . 2 1 . . Tool/Special 1 | . . . . . . . . . . . . . . . . . . . . . . . . . . . . . . 1 . Average Slot Usage (%) 86 | . 93 100 94 100 100 100 99 73 74 75 76 76 76 76 79 87 96 87 85 82 81 81 82 91 100 96 95 94 82 72 70 Engine 3 | . 13 5 8 11 11 11 8 11 15 15 15 15 15 15 13 7 . . . . . . . . . . . . . . . Reactor 5 | . . . . . . . . . . . . . . . . 2 12 11 11 11 11 11 9 9 9 4 5 8 8 7 8 Treads 14 | . 27 28 19 22 22 22 35 2 . . . . . . . 12 30 22 20 17 17 17 10 9 10 3 . . 7 14 11 Leg 3 | . . . . . . . . . . . . . . . . . . . . . . . . . . 22 35 36 15 . . Wheel 2 | . . . 2 . . . . . . . . . . . . . . . . . . . 3 18 25 7 . . . . . Flight 1 | . . . . . . . . 6 7 7 7 7 7 7 12 8 . . . . . . . . . . . . . . . Device 16 | . 9 14 11 11 11 11 9 3 5 6 7 6 7 6 5 8 10 11 17 17 16 16 17 20 19 21 28 25 27 25 27 Storage 6 | . 14 14 11 11 11 11 9 7 7 7 7 7 7 7 6 6 5 5 5 5 5 5 5 5 5 5 5 4 4 3 2 Processor 6 | . . . 5 11 11 11 3 . . 6 7 7 7 7 6 . . 3 11 11 11 11 6 9 10 10 5 4 4 7 8 Hackware 3 | . . . . . . . . 17 15 15 15 15 15 15 13 13 19 11 . . . . 9 . . . . . . . . Protection 6 | . . . 11 11 11 11 14 7 6 . . . . . 6 10 2 5 5 5 5 5 6 7 10 7 6 5 7 3 1 Energy Gun 3 | . 11 . . . . . . . . . . . . . . . 2 11 10 10 11 5 1 10 10 9 10 8 6 . . Energy Cannon 7 | . 4 28 22 22 22 22 18 1 . . . . . . 2 7 10 . . . . . 8 . . . . . 1 7 5 Slashing Weapon 1 | . . . . . . . . 13 15 15 13 13 15 13 10 5 . . . . . . . . . . . . . . . Peak Build Rating 219 | 6 11 14 17 17 20 20 36 65 70 66 65 65 65 65 76 79 121 123 124 121 137 137 150 110 110 156 160 179 205 217 219 Average Rating 109 | 4 7 12 16 17 18 20 30 60 67 65 63 63 64 64 72 70 75 120 121 119 126 128 128 96 104 131 155 172 194 214 195 On Entrance 83 | . 6 11 14 17 17 20 20 36 65 66 64 65 64 65 65 76 65 112 122 121 121 137 133 95 110 102 155 155 171 200 212 Avg Prop Armor Cover (%) 7 | . . . 8 . . . . . . . . . . . . 3 . . . . . . 4 10 9 9 . . 1 . . Naked Turns 25 | . . . . . . . . . . . . . . . . . . . . . . . . . . . . . . . 25 Heaviest Build 215 | 11 55 55 65 60 60 60 63 63 43 41 42 42 42 42 49 132 149 140 144 144 144 147 157 149 150 154 156 186 213 212 215 Greatest Support 690 | 40 40 40 40 40 40 40 89 88 50 50 50 50 50 50 57 126 190 200 200 180 240 230 230 68 68 160 160 193 285 285 690 Greatest Overweight (x) 15 | . 1 1 4 1 1 1 . . . . . . . . . 6 1 . . . . . 15 6 2 1 . . 1 1 . Average Overweight (x) . | . . 1 1 1 1 1 . . . . . . . . . . . . . . . . 1 2 1 . . . . . . Largest Inventory Capacity 25 | 8 20 20 20 20 20 20 20 20 15 15 15 15 15 15 15 25 25 25 25 25 25 25 25 25 25 25 25 25 25 25 25 Average Capacity 22 | 6 15 20 20 20 20 20 20 15 15 15 15 15 15 15 15 18 24 25 25 25 25 25 25 25 25 25 25 25 25 25 24 Most Carried 25 | 3 14 15 20 20 20 20 20 19 15 15 15 15 15 15 15 25 25 25 24 23 25 25 25 25 24 25 25 25 25 25 25 Average Carried 20 | 1 4 14 18 20 19 19 19 13 14 14 15 14 15 15 14 16 21 24 23 22 23 25 23 20 22 24 24 24 24 24 19 Final Capacity 25 | 8 20 20 20 20 20 20 20 15 15 15 15 15 15 15 15 25 25 25 25 25 25 25 25 25 25 25 25 25 25 25 25 Final Carried 25 | 3 14 15 20 20 20 20 19 15 15 15 15 15 15 15 15 25 25 25 23 23 25 25 18 21 24 25 25 25 25 23 25 Class Distribution -------------------- 59% | Scavenger-Mutant 22% | Mutant 16% | Hacker-Mutant Dominant Class ---------------- Mutant | -10/Materials Mutant | -10/Mines Mutant | -9/Materials Mutant | -9/Mines Mutant | -9/Exiles Mutant | -8/Mines Mutant | -8/Materials Hacker-Mutant | -7/Factory Hacker-Mutant | -7/Waste Hacker-Gladiator | -7/Factory Hacker-Mutant | -7/Lower Caves Hacker-Mutant | -7/Lower Caves Hacker-Mutant | -7/Data Miner Hacker-Mutant | -6/Proximity Caves Hacker-Mutant | -6/Factory Hacker-Mutant | -6/Extension Scavenger-Mutant | -6/Cetus Scavenger-Mutant | -5/Factory Scavenger-Mutant | -5/Upper Caves Scavenger-Mutant | -5/Upper Caves Scavenger-Mutant | -5/Zhirov Scavenger-Mutant | -4/Proximity Caves Hacker-Mutant | -4/Factory Scavenger-Mutant | -4/Upper Caves Scavenger-Mutant | -4/Upper Caves Scavenger-Mutant | -4/Warlord Scavenger-Mutant | -3/Proximity Caves Scavenger-Mutant | -3/Research Scavenger-Mutant | -2/Research Scavenger-Mutant | -1/Access Scavenger-Mutant | -1/Command Resources | -11 -10 -10 -9 -9 -9 -8 -8 -7 -7 -7 -7 -7 -7 -6 -6 -6 -6 -5 -5 -5 -5 -4 -4 -4 -4 -4 -3 -3 -2 -1 -1 ----------- Run | Yrd Mat Min Mat Min Exi Min Mat Fac Was Fac Low Low Dat Pro Fac Ext Cet Fac Upp Upp Zhi Pro Fac Upp Upp War Pro Res Res Acc Com Matter Collected 6064 | 241 153 10 105 . . 10 170 89 . . 108 172 . 153 83 570 257 90 70 189 80 339 481 265 217 385 120 213 487 410 597 Remotely . | . . . . . . . . . . . . . . . . . . . . . . . . . . . . . . . . Salvage Created 23083 | . 769 220 729 43 . . 968 89 . . 227 278 . 106 . 1341 102 401 553 317 101 668 2461 444 697 208 474 286 1220 4905 5476 Parts 869 | . 44 12 51 . . . 46 4 . . 11 5 . 6 . 54 5 12 21 12 2 16 79 7 18 6 15 7 46 237 153 Haulers Intercepted 3 | . 2 . 1 . . . . . . . . . . . . . . . . . . . . . . . . . . . . Recyclers Shooed 6 | . 1 . . . . . 1 . . . . . . . . . . . . . . . 3 . . . . . . 1 . Parts Field Recycled . | . . . . . . . . . . . . . . . . . . . . . . . . . . . . . . . . Retrieved Matter . | . . . . . . . . . . . . . . . . . . . . . . . . . . . . . . . . Parts Self-Destructed 79 | . . . . . . . . . . . 6 4 . 6 . . . . 10 11 1 15 . 5 10 . 11 . . . . Prevented 2 | . . . . . . . . . . . . . . . . . . . . . . . . 2 . . . . . . . Parts Restored . | . . . . . . . . . . . . . . . . . . . . . . . . . . . . . . . . Kills | -11 -10 -10 -9 -9 -9 -8 -8 -7 -7 -7 -7 -7 -7 -6 -6 -6 -6 -5 -5 -5 -5 -4 -4 -4 -4 -4 -3 -3 -2 -1 -1 ------- Run | Yrd Mat Min Mat Min Exi Min Mat Fac Was Fac Low Low Dat Pro Fac Ext Cet Fac Upp Upp Zhi Pro Fac Upp Upp War Pro Res Res Acc Com Combat Hostiles Destroyed 325 | . 16 7 19 3 . . 20 1 . . 7 3 . 7 . 15 1 6 7 8 . 14 37 4 4 5 7 4 19 66 45 Melee 8 | . . . . . . . . 1 . . . . . 2 . 5 . . . . . . . . . . . . . . . Guns 65 | . 10 . . . . . . . . . . . . . . . . 5 7 4 . 4 9 4 4 5 6 2 5 . . Cannons 159 | . 6 7 19 3 . . 18 . . . . . . . . 3 1 . . . . . 25 . . . . . 3 53 21 AOE 41 | . . . . . . . . . . . 7 3 . 5 . 7 . . . 3 . 10 . . . . . . 5 1 . Classes Destroyed 26 | . 4 1 2 1 . . 4 . . . 1 1 . . . 3 . 1 . . . . . . 1 1 . . 1 1 4 Worker 10 | . . . . . . . . . . . . . . . . 6 . 1 . . . . 1 . . . . . . 2 . Builder 9 | . . . . . . . . . . . . . . . . 3 . . . . . . 2 . . . . . 1 3 . Tunneler 1 | . . . . . . . . . . . . . . . . . . . . . . . . . . . . . . 1 . Hauler 3 | . 2 . 1 . . . . . . . . . . . . . . . . . . . . . . . . . . . . Recycler 8 | . 1 . . . . . . . . . . . . . . 3 . . . . . . 2 . . . . . . 1 1 Minesweeper 1 | . . . . . . . . . . . . . . . . . . . . . . . . . 1 . . . . . . Operator 6 | . . . 2 . . . 1 1 . . . . . . . 1 . . . . . . . . . . . . . 1 . Watcher 7 | . . . . . . . 1 . . . . . . . . 2 1 . . . . . . . . . . . . 2 1 Swarmer 53 | . 3 2 8 . . . 4 . . . . . . 4 . . . . . 3 . . 8 . . . 1 . 4 16 . Saboteur 1 | . . . . . . . . . . . . . . . . 1 . . . . . . . . . . . . . . . Grunt 121 | . 13 4 7 . . . 6 . . . 6 2 . 3 . 8 . 3 . 4 . 12 11 2 1 1 3 . 3 21 11 Brawler 6 | . . . . . . . 1 . . . 1 1 . . . 1 . . . 1 . . . . . . . . . . 1 Duelist 2 | . . . . . . . . . . . . . . . . . . . . . . . . . . . . . . . 2 Protector 3 | . . . . . . . . . . . . . . . . . . . . . . . . . . 2 . . . 1 . Sentry 23 | . . . 4 . . . 6 1 . . . . . . . 2 . 1 . . . . 3 . 1 . . 1 1 1 2 Demolisher 3 | . . 1 . . . . . . . . . . . . . . . . . . . . . . . . . . 2 . . Specialist 2 | . . . . . . . . . . . . . . . . . . . . . . . . . . . . . . . 2 Hunter 27 | . . . . . . . 2 . . . . . . . . 2 . . 2 . . 2 4 2 . . 2 2 4 2 3 Programmer 58 | . . . . . . . . . . . . . . . . . . 2 . . . . 11 . 2 2 1 1 2 24 13 Heavy 2 | . . . . . . . 1 . . . . . . . . . . . . . . . . . . . . . . 1 . Behemoth 2 | . . . . . . . . . . . . . . . . 1 . . 1 . . . . . . . . . . . . Cetus Guard 1 | . . . . . . . . . . . . . . . . . 1 . . . . . . . . . . . . . . M Guard 1 | . . . . . . . . . . . . . . . . . . . . . . . . . . . . . . . 1 Combat Programmer 1 | . . . . . . . . . . . . . . . . . . . . . . . . . . . . . . . 1 Striker 3 | . . . . . . . . . . . . . . . . . . . . . . . . . . . . . 3 . . Decomposer 10 | . . . . . . . . . . . . 3 . . . . . . . . . . . 7 . . . . . . . Packrat 3 | . . . . . . . . . . . . . . . . . . . . . . . . . 3 . . . . . . Samaritan 5 | . . . . . . . . . . . 1 . . . . . . . 2 . . . . . 2 . . . . . . Assembled 3 | . . . . 3 . . . . . . . . . . . . . . . . . . . . . . . . . . . Thug 6 | . . . . . . . . . . . . . . . . . . . 4 . . . . . . . . . . . 2 Savage 1 | . . . . . . . . . . . . . . . . . . . . . . . . . . . . . . . 1 Wizard 2 | . . . . . . . . . . . . . . . . . . . . . . . . . . . . . . . 2 Fireman 1 | . . . . . . . . . . . . . . . . . . . . . . . . . . . . . . . 1 Mutant 2 | . . . . . . . . . . . . . . . . . . . . . . . . . . . . . . . 2 Best Kill Streak 15 | . 5 2 5 3 . . 3 1 . . 7 3 . 3 . 8 2 2 4 3 . 3 15 2 2 2 2 2 14 11 9 Combat Bots Only 14 | . 5 2 5 3 . . 3 1 . . 7 3 . 3 . 4 1 2 4 3 . 3 6 2 2 2 2 2 14 9 8 Max Kills in Single Turn 8 | . 1 1 1 1 . . 1 1 . . 2 2 . 2 . 8 1 1 1 2 . 2 2 1 1 1 1 1 3 1 1 Gunslinging 1 | . . . . . . . . . . . . . . . . . . . . 1 . . 1 . . . . . . . . Exploded 4 | . . . . . . . . . . . 2 2 . 2 . 4 . . . 1 . 2 . . . . . . 3 1 . Melee 1 | . . . . . . . . 1 . . . . . 1 . 1 . . . . . . . . . . . . . . . Uniques/NPCs Destroyed 1 | . . . . . . . . . . . . . . . . . . . . . . . . . . . . . . . 1 MAIN.C Shell (-1/Command) Combat | -11 -10 -10 -9 -9 -9 -8 -8 -7 -7 -7 -7 -7 -7 -6 -6 -6 -6 -5 -5 -5 -5 -4 -4 -4 -4 -4 -3 -3 -2 -1 -1 -------- Run | Yrd Mat Min Mat Min Exi Min Mat Fac Was Fac Low Low Dat Pro Fac Ext Cet Fac Upp Upp Zhi Pro Fac Upp Upp War Pro Res Res Acc Com Hostile Shots Fired 2565 | . 91 25 103 3 . . 102 9 1 . 4 2 . 24 . 156 13 29 68 27 . 78 358 79 20 112 69 102 111 318 661 Missed 762 | . 22 6 21 2 . . 31 7 . . 2 2 . 7 . 87 4 5 11 3 . 18 96 29 8 51 46 71 33 71 129 Hits 1803 | . 69 19 82 1 . . 71 2 1 . 2 . . 17 . 69 9 24 57 24 . 60 262 50 12 61 23 31 78 247 532 Melee 18 | . . . . . . . . . 1 . . . . . . . . . . . . . . . . 1 . . 13 . 3 Projectile 1785 | . 69 19 82 1 . . 71 2 . . 2 . . 17 . 69 9 24 57 24 . 60 262 50 12 60 23 31 65 247 529 AOE 70 | . . 1 . . . . . . . . . . . . . . . . . . . . . . . 5 . . 22 . 42 Critical Strikes 96 | . . 1 3 . . . 1 . 1 . . . . . . 6 . 2 5 . . 1 12 1 1 2 1 3 4 14 38 Actively Blocked 45 | . . . . . . . . . . . . . . . . . . . . . . . . . . . . . . 9 36 Part Disruptions 10 | . . . . . . . . . . . . . . . . . . . . . . . 1 . . 1 . . . 1 7 Damage Taken 32811 | . 750 219 863 10 . . 1175 16 30 . 33 . . 356 . 1376 272 560 914 337 . 842 3325 673 205 1423 310 480 1808 3334 13500 Core 2257 | . 144 18 225 . . . 60 . . . . . . 15 . 120 . 47 12 38 . 40 240 41 . 65 18 . 123 101 950 Absorbed by Shields 6708 | . . . . . . . . . . . . . . . . . . . 298 78 . . 700 . . 193 80 180 1277 1984 1918 Reduced by Siege Mode 3255 | . . . . . . . . . . . . . . . . . . 55 59 34 . 56 99 . . . . . 204 312 2436 Redirected to Shielding 11 | . . . . . . . . . . . . . . . . . . . . . . . . . 11 . . . . . . Ignored by Resistances 3748 | . . . . . . . . . . . . . . . . . . . . . . 295 910 128 5 . 42 . 198 830 1340 Regen/Repaired (Parts) 1794 | . . . . . . . . . . 34 . . . . . 173 . . . . . . . . . 1073 . . 514 . . Core Remaining (%) 75 | 100 . 35 . . . 43 89 . . . . . . 97 . . 85 . . . . 86 . . . . 68 100 91 . 34 Volleys Fired 1476 | . 46 15 53 4 . . 67 . . . 4 2 . 10 5 35 14 48 26 18 12 29 133 36 24 20 25 27 61 235 527 Largest 2 | . 2 2 2 2 . . 2 . . . 2 2 . 1 1 2 2 2 2 2 1 2 2 2 2 2 2 2 2 2 1 Hottest 480 | . 136 136 136 136 . . 136 . . . 72 72 . 39 90 180 180 160 480 279 80 160 188 160 168 480 160 240 218 214 120 Shots Fired 1996 | . 92 30 106 8 . . 134 . . . 8 4 . 10 5 42 28 90 52 29 12 34 242 71 49 40 50 43 101 237 479 Gun 644 | . 72 . . . . . . . . . . . . . . . . 90 52 23 12 15 44 71 49 40 50 42 66 . 18 Cannon 1296 | . 20 30 106 8 . . 134 . . . . . . . 5 37 28 . . . . . 198 . . . . 1 32 237 460 Launcher 55 | . . . . . . . . . . . 8 4 . 10 . 5 . . . 6 . 19 . . . . . . 3 . . Special 1 | . . . . . . . . . . . . . . . . . . . . . . . . . . . . . . . 1 Kinetic 36 | . 36 . . . . . . . . . . . . . . . . . . . . . . . . . . . . . . Thermal 1622 | . 56 30 106 8 . . 134 . . . . . . . 5 37 28 90 52 23 12 15 242 71 49 40 50 43 32 155 344 Explosive 55 | . . . . . . . . . . . 8 4 . 10 . 5 . . . 6 . 19 . . . . . . 3 . . Electromagnetic 282 | . . . . . . . . . . . . . . . . . . . . . . . . . . . . . 66 82 134 Robot Hit Streak 68 | . 13 5 11 6 . . 11 . . . 17 18 . 20 . 14 11 10 41 15 20 11 41 20 20 10 18 8 35 27 68 Robot Miss Streak 10 | . 4 3 4 . . . 10 . . . . . . 5 . 7 4 1 1 1 1 1 2 1 3 2 3 4 3 4 6 Penetration Max . | . . . . . . . . . . . . . . . . . . . . . . . . . . . . . . . . Secondary Targets 11 | . 3 . . . . . . . . . . . . . . . . . . 2 . 1 1 . . . 1 2 1 . . Max Gunslinging Chain 1 | . 1 . . . . . . . . . . . . . . . . . . 1 . 1 1 . . . 1 1 1 . . Capacitor 712 | . . . . . . . . . . . . . . . . . . . . . . . . . . . . . 7 230 475 Shots Hit Robots 1473 | . 66 16 62 3 . . 86 4 . 1 7 6 . 6 . 55 13 38 47 22 11 20 176 54 33 31 41 24 76 172 403 Core Hits 623 | . 29 9 22 3 . . 32 1 . . 15 9 . 14 . 38 4 13 18 19 2 45 63 21 18 17 18 5 33 76 99 Critical Kills 6 | . . . . . . . . . . . . . . . . . . . . . . . 3 . . . . . . 1 2 Critical Parts Destroyed . | . . . . . . . . . . . . . . . . . . . . . . . . . . . . . . . . Critical Strikes 21 | . 5 . . . . . . . . . . . . 1 . 3 . . . . . . 3 . . . . . . 3 6 Burn 5 | . 5 . . . . . . . . . . . . . . . . . . . . . . . . . . . . . . Meltdown 6 | . . . . . . . . . . . . . . . . . . . . . . . 3 . . . . . . 1 2 Corrupt 6 | . . . . . . . . . . . . . . . . . . . . . . . . . . . . . . 2 4 Sever 4 | . . . . . . . . . . . . . . 1 . 3 . . . . . . . . . . . . . . . Melee Attacks 88 | . . . . . . . . 15 . 11 1 6 . 4 14 37 . . . . . . . . . . . . . . . Impact . | . . . . . . . . . . . . . . . . . . . . . . . . . . . . . . . . Slashing 83 | . . . . . . . . 15 . 11 1 6 . 4 14 32 . . . . . . . . . . . . . . . Piercing . | . . . . . . . . . . . . . . . . . . . . . . . . . . . . . . . . Sneak Attacks 12 | . . . . . . . . . . . 1 3 . . . 8 . . . . . . . . . . . . . . . Combat Hostiles . | . . . . . . . . . . . . . . . . . . . . . . . . . . . . . . . . Follow-up Attacks 9 | . . . . . . . . 2 . 1 . . . 1 . 5 . . . . . . . . . . . . . . . Damage Inflicted 59273 | . 881 353 1420 62 . . 1894 218 . 45 954 651 . 835 . 3315 577 1188 1547 1151 307 2318 6477 1571 1088 999 1140 844 3213 9578 16647 Guns 12801 | . 552 . . . . . . . . . . . . . . . . 1188 1547 503 307 318 1221 1571 1088 999 1140 844 1523 . . Cannons 37529 | . 329 353 1420 62 . . 1894 . . . . . . . . 867 577 . . . . . 5012 . . . . . 880 9516 16619 Explosions 6981 | . . . . . . . . . . . 890 221 . 679 . 1399 . . . 648 . 2000 244 . . . . . 810 62 28 Melee 1962 | . . . . . . . . 218 . 45 64 430 . 156 . 1049 . . . . . . . . . . . . . . . Ramming . | . . . . . . . . . . . . . . . . . . . . . . . . . . . . . . . . Kinetic 196 | . 196 . . . . . . . . . . . . . . . . . . . . . . . . . . . . . . Thermal 42149 | . 685 353 1420 62 . . 1894 . . . . . . . . 867 577 1188 1547 503 307 318 6477 1571 1088 999 1140 844 944 6061 13304 Explosive 6645 | . . . . . . . . . . . 890 221 . 679 . 1399 . . . 648 . 2000 . . . . . . 746 62 . Electromagnetic 8321 | . . . . . . . . . . . . . . . . . . . . . . . . . . . . . 1523 3455 3343 Impact . | . . . . . . . . . . . . . . . . . . . . . . . . . . . . . . . . Slashing 1962 | . . . . . . . . 218 . 45 64 430 . 156 . 1049 . . . . . . . . . . . . . . . Piercing . | . . . . . . . . . . . . . . . . . . . . . . . . . . . . . . . . Highest Corruption 79 | . . . . . . . . . 1 1 1 1 1 1 . . 50 2 . . . . 14 14 5 5 3 5 3 21 79 Average Corruption 12 | . . . . . . . . . 1 1 1 1 1 1 . . 36 1 . . . . 3 7 4 2 3 1 2 5 47 Corruption Purged 26 | . . . . . . . . . . . . . . . . . . 2 . . . . . 10 . . . 4 . 10 . Corruption Blocked 8 | . . . . . . . . . 8 . . . . . . . . . . . . . . . . . . . . . . Effects 358 | . . . . . . . . . . 2 2 1 1 1 . . 6 1 . . . . 32 28 19 7 4 7 14 48 185 Message Errors 76 | . . . . . . . . . . . 1 . . . . . 3 . . . . . 6 6 4 2 1 . 3 13 37 Matter Fused 67 | . . . . . . . . . . 1 . . . 1 . . 1 . . . . . 7 6 4 2 1 3 4 12 25 Heat Flow Errors 34 | . . . . . . . . . . . 1 1 . . . . . 1 . . . . 1 3 1 1 1 1 4 2 17 Energy Discharges 38 | . . . . . . . . . . . . . . . . . 1 . . . . . 4 4 4 2 1 1 1 4 16 Parts Rejected 5 | . . . . . . . . . . . . . . . . . . . . . . . 3 . . . . . . 1 1 Parts Fused 3 | . . . . . . . . . . . . . . . . . . . . . . . . . . . . . . 1 2 Data Loss (minor) 40 | . . . . . . . . . . 1 . . 1 . . . . . . . . . 5 5 5 . . 2 1 5 15 Data Loss (major) 22 | . . . . . . . . . . . . . . . . . 1 . . . . . 3 3 . . . . . 2 13 Misfires 8 | . . . . . . . . . . . . . . . . . . . . . . . 1 . 1 . . . 1 3 2 Alerts 3 | . . . . . . . . . . . . . . . . . . . . . . . . 1 . . . . . 1 1 Misdirections 8 | . . . . . . . . . . . . . . . . . . . . . . . . . . . . . . 2 6 Weapon Failures 54 | . . . . . . . . . . . . . . . . . . . . . . . 2 . . . . . . 2 50 Overload Shots 10 | . . . . . . . . . . . . . . . . . . . 2 1 . . . . . 2 . 5 . . . Overflow Damage 2298 | . . . 44 . . . 5 82 . 10 17 191 . 26 . 121 28 . . 26 . . 339 . . . . . 130 851 428 Projectiles 1714 | . . . 44 . . . 5 . . . . . . . . 8 28 . . . . . 220 . . . . . 130 851 428 Explosions 193 | . . . . . . . . . . . 17 . . . . 31 . . . 26 . . 119 . . . . . . . . Melee 391 | . . . . . . . . 82 . 10 . 191 . 26 . 82 . . . . . . . . . . . . . . . Knockbacks . | . . . . . . . . . . . . . . . . . . . . . . . . . . . . . . . . Impact . | . . . . . . . . . . . . . . . . . . . . . . . . . . . . . . . . Kinetic . | . . . . . . . . . . . . . . . . . . . . . . . . . . . . . . . . Secondary . | . . . . . . . . . . . . . . . . . . . . . . . . . . . . . . . . Self-Inflicted Damage 408 | . . . . . . . . . . . . . . 75 . . . . . . . . 101 . . . . . 86 105 41 Shots 6 | . . . . . . . . . . . . . . 2 . . . . . . . . 1 . . . . . 1 1 1 Rammed . | . . . . . . . . . . . . . . . . . . . . . . . . . . . . . . . . Targets Rammed . | . . . . . . . . . . . . . . . . . . . . . . . . . . . . . . . . Kicked . | . . . . . . . . . . . . . . . . . . . . . . . . . . . . . . . . Crushed . | . . . . . . . . . . . . . . . . . . . . . . . . . . . . . . . . Highest Temperature 386 | . 239 78 165 45 . . 315 . . . 209 135 . 43 118 386 108 189 177 . . . . 131 76 234 193 164 159 295 349 Average Temperature 72 | . 66 31 52 20 . . 60 . . . 84 51 . 19 44 93 50 102 150 . . . . 57 76 109 116 60 71 75 82 Received Heat Transfer 3707 | . 351 66 261 . . . 234 6 . . 18 . . 21 . 246 36 99 191 96 . 201 381 85 9 155 51 20 7 140 1033 Effects 11 | . . . . . . . . . . . . . . . . 4 . . . . . . . . . . . . . 4 3 Shutdowns 1 | . . . . . . . . . . . . . . . . 1 . . . . . . . . . . . . . . . Energy Bleed 3 | . . . . . . . . . . . . . . . . . . . . . . . . . . . . . . 1 2 Interference 6 | . . . . . . . . . . . . . . . . 2 . . . . . . . . . . . . . 3 1 Matter Decay 1 | . . . . . . . . . . . . . . . . 1 . . . . . . . . . . . . . . . Siege Activations 69 | . . . . . . . . . . . . . . . . . . 5 3 3 . 5 11 . . . . . 2 22 18 Total Turns 1273 | . . . . . . . . . . . . . . . . . . 47 55 40 . 54 196 . . . . . 110 274 497 Longest Duration 130 | . . . . . . . . . . . . . . . . . . 16 28 19 . 18 61 . . . . . 98 62 130 Martial Activations . | . . . . . . . . . . . . . . . . . . . . . . . . . . . . . . . . Shielding Activations . | . . . . . . . . . . . . . . . . . . . . . . . . . . . . . . . . Robots Disrupted . | . . . . . . . . . . . . . . . . . . . . . . . . . . . . . . . . Combat Hostiles . | . . . . . . . . . . . . . . . . . . . . . . . . . . . . . . . . Robots Corrupted 41 | . . . . . . . . . . . . . . . . . . . . . . . . . . . . . 6 12 23 Combat Hostiles 39 | . . . . . . . . . . . . . . . . . . . . . . . . . . . . . 6 11 22 Parts Fried 89 | . . . . . . . . . . . . . . . . 1 . . . . . . . . . . . . 12 29 47 Impact Corruptions . | . . . . . . . . . . . . . . . . . . . . . . . . . . . . . . . . Robots Melted 13 | . . . . . . . 2 . . . . . . . . . . 1 . 1 . . 3 . . . 1 2 . 1 2 Combat Hostiles 13 | . . . . . . . 2 . . . . . . . . . . 1 . 1 . . 3 . . . 1 2 . 1 2 Parts Melted 115 | . 6 . 6 . . . 14 . . . . . . . . 3 . 3 3 . . 2 36 4 . 1 3 4 2 15 13 Heat Transferred 39082 | . 1998 592 2442 111 . . 3219 . . . . . . . . 1300 900 1406 1765 666 407 370 7672 1998 1221 1023 1480 1036 831 3848 4797 Parts Sabotaged . | . . . . . . . . . . . . . . . . . . . . . . . . . . . . . . . . Parts Stolen . | . . . . . . . . . . . . . . . . . . . . . . . . . . . . . . . . Parts Stripped . | . . . . . . . . . . . . . . . . . . . . . . . . . . . . . . . . Power Chain Reactions 2 | . . . . . . . . . . . . . . . . . . . . . . . . . . . . . 1 . 1 Alert | -11 -10 -10 -9 -9 -9 -8 -8 -7 -7 -7 -7 -7 -7 -6 -6 -6 -6 -5 -5 -5 -5 -4 -4 -4 -4 -4 -3 -3 -2 -1 -1 ------- Run | Yrd Mat Min Mat Min Exi Min Mat Fac Was Fac Low Low Dat Pro Fac Ext Cet Fac Upp Upp Zhi Pro Fac Upp Upp War Pro Res Res Acc Com Maximum Alert Level 4 | . . . . . . . . . . . . . . . . 2 1 2 . . . . 1 . . . . 1 1 4 4 Low Security (%) 59 | 100 100 100 100 100 . 100 100 100 100 100 . . . . 100 43 38 21 . . . . 76 . . . . 11 47 22 23 Level 1 16 | . . . . . . . . . . . . . . . . 7 61 42 . . . . 23 . . . . 88 52 1 . Level 2 9 | . . . . . . . . . . . . . . . . 49 . 36 . . . . . . . . . . . 22 . Level 3 10 | . . . . . . . . . . . . . . . . . . . . . . . . . . . . . . 43 46 Level 4 4 | . . . . . . . . . . . . . . . . . . . . . . . . . . . . . . 9 29 Level 5 . | . . . . . . . . . . . . . . . . . . . . . . . . . . . . . . . . High Security . | . . . . . . . . . . . . . . . . . . . . . . . . . . . . . . . . Max Security . | . . . . . . . . . . . . . . . . . . . . . . . . . . . . . . . . Peak Influence 1327 | . 198 67 193 18 . . 195 75 15 31 . . . . 66 636 353 660 . . . . 375 . . . . 342 367 1327 1168 Initial 844 | . . 67 . 18 . . . 75 . . . . . . 65 . 336 92 . . . . 8 . . . . 342 96 117 844 Average 276 | . 56 18 41 1 . . 88 18 1 3 . . . . 10 286 228 373 . . . . 116 . . . . 245 188 649 815 Influence Increases 12015 | . 522 170 653 . . . 654 107 15 75 175 75 . 205 44 1329 293 1144 80 210 5 330 1119 135 100 100 230 491 701 1892 1161 Destroy 0b10 Robot/C 6860 | . 320 140 380 . . . 400 20 . . 140 60 . 140 . 620 160 380 60 160 . 280 740 80 80 60 140 80 380 1300 740 Destroy 0b10 Robot/NC 315 | . 15 . 15 . . . 10 5 . . . 5 . . . 95 10 25 . . 5 . 25 . 10 10 . . 5 55 25 Destroy Leader 1326 | . 84 30 102 . . . 122 10 . . 20 10 . 20 . 66 . 106 20 20 . 50 150 10 10 . 30 30 70 234 132 Allied During Kill 875 | . . . . . . . . . . . . . . . . 338 103 434 . . . . . . . . . . . . . Successful Hack 286 | . 28 . 17 . . . . 34 . 22 . . . . 26 12 . 61 . . . . 10 . . . . 52 . 24 . Select Force Hacks 120 | . 60 . 60 . . . . . . . . . . . . . . . . . . . . . . . . . . . . Disable Machine 240 | . . . . . . . 45 15 . 15 . . . . . 45 . 30 . . . . 15 . . . . 15 . 15 45 Anti-Garrison Action 150 | . . . . . . . . . . . . . . . . . . . . . . . . . . . . . 150 . . Destroy Structure 748 | . . . 4 . . . 2 8 . 8 . . . . 18 63 20 78 . . . . 164 . . . . 14 51 219 99 Advance Influence 300 | . . . . . . . . . . . . . . . . . . . . . . . . . . . . 300 . . . Partial Spotted 45 | . . . . . . . . . 15 . . . . . . . . . . . . . . . . . . . 15 15 . Lose Combat Pursuer 750 | . 15 . 75 . . . 75 15 . 30 15 . . 45 . 90 . 30 . 30 . . 15 45 . 30 60 . 30 30 120 Influence Decreases 10847 | . 348 344 604 49 . . 487 274 15 75 110 133 7 100 148 728 730 898 451 250 5 316 762 506 100 95 171 384 676 769 1312 Entered New Map 1591 | . . 107 . 31 . . . 92 . . . 13 7 . 40 1 266 73 153 8 . . 6 138 . . 5 22 75 79 475 Time Decay 7731 | . 328 237 424 18 . . 467 182 15 75 110 120 . 100 108 464 334 595 278 232 5 306 466 316 90 85 156 362 571 680 607 Lost Part 642 | . 20 . 30 . . . 20 . . . . . . . . 30 10 . 20 10 . 10 140 52 10 10 10 . 30 10 230 Lost Ally 433 | . . . . . . . . . . . . . . . . 233 120 80 . . . . . . . . . . . . . Purge Threat 450 | . . . 150 . . . . . . . . . . . . . . 150 . . . . 150 . . . . . . . . Squads Dispatched 77 | . 6 . 5 . . . 4 2 . 2 . . . . 3 3 . 7 . . . . 11 . . . . 5 2 12 15 Investigation 19 | . 6 . 3 . . . 2 1 . 1 . . . . 1 . . 4 . . . . . . . . . 1 . . . Extermination 25 | . . . . . . . . 1 . 1 . . . . 2 . . 3 . . . . 5 . . . . . . 8 5 Reinforcement 25 | . . . 2 . . . 2 . . . . . . . . 2 . . . . . . 5 . . . . 4 2 2 6 Assault 7 | . . . . . . . . . . . . . . . . 1 . . . . . . . . . . . . . 2 4 Garrison 1 | . . . . . . . . . . . . . . . . . . . . . . . 1 . . . . . . . . Intercept . | . . . . . . . . . . . . . . . . . . . . . . . . . . . . . . . . Searches Triggered . | . . . . . . . . . . . . . . . . . . . . . . . . . . . . . . . . Data Miner Redirects 7 | . . . . . . . . . . . . . . . . . . 1 . . . . . . . . . . . 2 4 Construction Impeded 4 | . . . . . . . . . . . . . . . . 2 . . . . . . 2 . . . . . . . . Haulers Reinforced 4 | . . . . . . . . . . . . . . . . . . . . . . . . . . . . 2 2 . . Active Scanning Responses . | . . . . . . . . . . . . . . . . . . . . . . . . . . . . . . . . Cargo Convoy Interrupts . | . . . . . . . . . . . . . . . . . . . . . . . . . . . . . . . . Stealth | -11 -10 -10 -9 -9 -9 -8 -8 -7 -7 -7 -7 -7 -7 -6 -6 -6 -6 -5 -5 -5 -5 -4 -4 -4 -4 -4 -3 -3 -2 -1 -1 --------- Run | Yrd Mat Min Mat Min Exi Min Mat Fac Was Fac Low Low Dat Pro Fac Ext Cet Fac Upp Upp Zhi Pro Fac Upp Upp War Pro Res Res Acc Com Distress Signals 50 | . . . 3 . . . 6 1 . . . . . . . 3 2 1 . . . . 4 . . . . 2 11 . 17 Communications Jammed 4 | . . . . . . . . . . . . . . . . . . . . . . . . . . . . 3 . 1 . Distress Signals 4 | . . . . . . . . . . . . . . . . . . . . . . . . . . . . 3 . 1 . Times Spotted 605 | . 25 8 32 3 . . 35 5 6 5 6 3 . 9 2 40 9 22 7 10 . 15 47 7 7 87 14 9 44 77 71 Peak Tracking Total 13 | . 4 3 9 3 . . 5 2 6 3 6 3 . 4 1 6 5 3 4 4 . 3 8 4 4 13 7 3 12 7 11 Tactical Retreats 36 | . 1 . 3 . . . 3 1 . 1 1 . . 2 . 4 . 2 . 2 . . 1 1 . 2 2 . 2 2 6 ECM-based Alert Blocks 1 | . . . . . . . . . . 1 . . . . . . . . . . . . . . . . . . . . . Traps | -11 -10 -10 -9 -9 -9 -8 -8 -7 -7 -7 -7 -7 -7 -6 -6 -6 -6 -5 -5 -5 -5 -4 -4 -4 -4 -4 -3 -3 -2 -1 -1 ------- Run | Yrd Mat Min Mat Min Exi Min Mat Fac Was Fac Low Low Dat Pro Fac Ext Cet Fac Upp Upp Zhi Pro Fac Upp Upp War Pro Res Res Acc Com Traps Triggered 18 | . 3 . 1 . . . 1 2 . . . . . . 1 5 . 1 . . . . . . . . . 2 . 1 1 Indirectly . | . . . . . . . . . . . . . . . . . . . . . . . . . . . . . . . . Trap Hack Attempts . | . . . . . . . . . . . . . . . . . . . . . . . . . . . . . . . . Triggered . | . . . . . . . . . . . . . . . . . . . . . . . . . . . . . . . . Disarmed . | . . . . . . . . . . . . . . . . . . . . . . . . . . . . . . . . Reprogrammed . | . . . . . . . . . . . . . . . . . . . . . . . . . . . . . . . . Reused . | . . . . . . . . . . . . . . . . . . . . . . . . . . . . . . . . Traps Extracted . | . . . . . . . . . . . . . . . . . . . . . . . . . . . . . . . . Installed . | . . . . . . . . . . . . . . . . . . . . . . . . . . . . . . . . Triggered . | . . . . . . . . . . . . . . . . . . . . . . . . . . . . . . . . Machines | -11 -10 -10 -9 -9 -9 -8 -8 -7 -7 -7 -7 -7 -7 -6 -6 -6 -6 -5 -5 -5 -5 -4 -4 -4 -4 -4 -3 -3 -2 -1 -1 ---------- Run | Yrd Mat Min Mat Min Exi Min Mat Fac Was Fac Low Low Dat Pro Fac Ext Cet Fac Upp Upp Zhi Pro Fac Upp Upp War Pro Res Res Acc Com Machines Disabled 19 | . . . . . . . 3 1 . 1 . . . . . 3 . 2 . 1 1 . 1 . . . . 1 1 1 3 Max in Single Turn 1 | . . . . . . . 1 1 . 1 . . . . . . . 1 . 1 1 . 1 . . . . 1 1 1 1 Garrison Access 6 | . . . . . . . . 1 . . . . . . 1 . . 1 . . . . 1 . . . . . 2 . . Machines Repaired . | . . . . . . . . . . . . . . . . . . . . . . . . . . . . . . . . Machines Dismantled . | . . . . . . . . . . . . . . . . . . . . . . . . . . . . . . . . Machines Sabotaged . | . . . . . . . . . . . . . . . . . . . . . . . . . . . . . . . . Overloaded Fab Kills . | . . . . . . . . . . . . . . . . . . . . . . . . . . . . . . . . Hacking | -11 -10 -10 -9 -9 -9 -8 -8 -7 -7 -7 -7 -7 -7 -6 -6 -6 -6 -5 -5 -5 -5 -4 -4 -4 -4 -4 -3 -3 -2 -1 -1 --------- Run | Yrd Mat Min Mat Min Exi Min Mat Fac Was Fac Low Low Dat Pro Fac Ext Cet Fac Upp Upp Zhi Pro Fac Upp Upp War Pro Res Res Acc Com Machines Accessed 90 | . 9 . 8 . 2 . 4 5 . 7 1 1 4 . 9 3 1 7 . 1 4 . 8 . . 3 1 6 2 3 1 Terminals 47 | . 7 . 6 . . . 2 3 . 2 . . . . 4 3 1 4 . . . . 5 . . . 1 5 1 2 1 Fabricators 5 | . . . . . . . . . . 1 . . . . 2 . . 2 . . . . . . . . . . . . . Repair Stations 2 | . . . . . . . . . . 2 . . . . . . . . . . . . . . . . . . . . . Recycling Units 4 | . 2 . 2 . . . . . . . . . . . . . . . . . . . . . . . . . . . . Scanalyzers 5 | . . . . . . . 2 1 . . . . . . . . . . . . . . 2 . . . . . . . . Garrison Access 11 | . . . . . . . . 1 . 2 . . . . 3 . . 1 . . . . 1 . . . . 1 1 1 . Total Hacks 226 | . 16 . 16 . 2 . 10 16 . 20 1 1 29 . 16 5 1 22 . 1 17 . 23 . . 10 1 10 3 4 2 Successful 138 | . 9 . 10 . 2 . 5 6 . 4 1 1 29 . 10 1 1 14 . 1 17 . 11 . . 10 1 3 . 1 1 Failed 88 | . 7 . 6 . . . 5 10 . 16 . . . . 6 4 . 8 . . . . 12 . . . . 7 3 3 1 Catastrophic 21 | . 3 . 2 . . . 3 . . 3 . . . . 2 1 . 1 . . . . 1 . . . . 2 1 2 . Database Lockouts . | . . . . . . . . . . . . . . . . . . . . . . . . . . . . . . . . Manual 89 | . 14 . 14 . 1 . 5 9 . 8 . . . . 6 3 1 12 . . . . 8 . . 1 . 3 1 2 1 Terminals 110 | . 14 . 14 . . . 6 10 . 6 . . . . 8 5 1 16 . . . . 15 . . . 1 8 1 3 2 Fabricators 12 | . . . . . . . . . . 4 . . . . 4 . . 4 . . . . . . . . . . . . . Repair Stations 7 | . . . . . . . . . . 7 . . . . . . . . . . . . . . . . . . . . . Recycling Units 4 | . 2 . 2 . . . . . . . . . . . . . . . . . . . . . . . . . . . . Scanalyzers 13 | . . . . . . . 4 2 . . . . . . . . . . . . . . 7 . . . . . . . . Garrison Access 19 | . . . . . . . . 4 . 3 . . . . 4 . . 2 . . . . 1 . . . . 2 2 1 . Terminal Hacks 92 | . 5 . 6 . 2 . 1 1 . . 1 1 29 . 3 . 1 7 . 1 17 . 4 . . 10 1 1 . . 1 Record 28 | . . . . . 1 . . . . . . . 11 . . . . . . . 5 . . . . 10 1 . . . . Part Schematic 15 | . . . . . . . . . . . . . 10 . . . . 1 . . 4 . . . . . . . . . . Robot Schematic 5 | . . . . . . . . . . . . . 5 . . . . . . . . . . . . . . . . . . Robot Analysis 13 | . 3 . 3 . . . 1 . . . . . . . . . . 2 . . 4 . . . . . . . . . . Prototype ID Bank 7 | . . . . . . . . . . . . . 3 . . . . . . . 4 . . . . . . . . . . Open Door 5 | . . . . . . . . . . . 1 1 . . . . 1 . . 1 . . . . . . . . . . 1 Branch Access Points 3 | . . . . . . . . 1 . . . . . . . . . 1 . . . . 1 . . . . . . . . Fabricator Index 1 | . . . . . . . . . . . . . . . . . . 1 . . . . . . . . . . . . . Recycling Unit Index 2 | . 1 . 1 . . . . . . . . . . . . . . . . . . . . . . . . . . . . Scanalyzer Index 1 | . . . . . . . . . . . . . . . . . . . . . . . 1 . . . . . . . . Alert Level 1 | . . . . . . . . . . . . . . . . . . 1 . . . . . . . . . . . . . Unreport Threat 3 | . . . 1 . . . . . . . . . . . . . . 1 . . . . 1 . . . . . . . . Zone Layout 7 | . 1 . 1 . . . . . . . . . . . 3 . . . . . . . 1 . . . . 1 . . . Proto ID Catalog 1 | . . . . . 1 . . . . . . . . . . . . . . . . . . . . . . . . . . Fabricator Hacks 7 | . . . . . . . . . . . . . . . 3 . . 4 . . . . . . . . . . . . . Load Schematic 4 | . . . . . . . . . . . . . . . 2 . . 2 . . . . . . . . . . . . . Build 3 | . . . . . . . . . . . . . . . 1 . . 2 . . . . . . . . . . . . . Repair Station Hacks 3 | . . . . . . . . . . 3 . . . . . . . . . . . . . . . . . . . . . Scan Component 2 | . . . . . . . . . . 2 . . . . . . . . . . . . . . . . . . . . . Repair 1 | . . . . . . . . . . 1 . . . . . . . . . . . . . . . . . . . . . Recycling Unit Hacks . | . . . . . . . . . . . . . . . . . . . . . . . . . . . . . . . . Scanalyzer 8 | . . . . . . . 3 2 . . . . . . . . . . . . . . 3 . . . . . . . . Insert Component 2 | . . . . . . . . . . . . . . . . . . . . . . . 2 . . . . . . . . Analyze 1 | . . . . . . . . . . . . . . . . . . . . . . . 1 . . . . . . . . Retrieve Study 5 | . . . . . . . 3 2 . . . . . . . . . . . . . . . . . . . . . . . Garrison Access Hacks 4 | . . . . . . . . 1 . . . . . . 1 . . 1 . . . . 1 . . . . . . . . Seal Access 4 | . . . . . . . . 1 . . . . . . 1 . . 1 . . . . 1 . . . . . . . . Unauthorized Hacks 24 | . 4 . 4 . . . 1 2 . 1 . . . . 3 1 . 2 . . . . 3 . . . . 2 . 1 . Terminals 19 | . 2 . 2 . . . 1 2 . 1 . . . . 2 1 . 2 . . . . 3 . . . . 2 . 1 . Assimilate 1 | . . . . . . . . . . . . . . . . . . . . . . . 1 . . . . . . . . Botnet 18 | . 2 . 2 . . . 1 2 . 1 . . . . 2 1 . 2 . . . . 2 . . . . 2 . 1 . Fabricators 1 | . . . . . . . . . . . . . . . 1 . . . . . . . . . . . . . . . . Recompile 1 | . . . . . . . . . . . . . . . 1 . . . . . . . . . . . . . . . . Repair Stations . | . . . . . . . . . . . . . . . . . . . . . . . . . . . . . . . . Recycling Units 4 | . 2 . 2 . . . . . . . . . . . . . . . . . . . . . . . . . . . . Tunnel 4 | . 2 . 2 . . . . . . . . . . . . . . . . . . . . . . . . . . . . Scanalyzers . | . . . . . . . . . . . . . . . . . . . . . . . . . . . . . . . . Garrison Access . | . . . . . . . . . . . . . . . . . . . . . . . . . . . . . . . . Data Cores Recovered 2 | . . . 1 . . . . . . . . . . . . 1 . . . . . . . . . . . . . . . Used 1 | . . . 1 . . . . . . . . . . . . . . . . . . . . . . . . . . . . Hacking Detections 54 | . 7 . 4 . . . 3 4 . 7 . . . . 4 3 . 7 . . . . 4 . . . . 5 2 3 1 Full Trace Events 5 | . 1 . . . . . 1 . . 1 . . . . . . . 2 . . . . . . . . . . . . . Feedback Events . | . . . . . . . . . . . . . . . . . . . . . . . . . . . . . . . . Feedback Blocked . | . . . . . . . . . . . . . . . . . . . . . . . . . . . . . . . . Robot Schematics Acquired 5 | . . . . . . . . . . . . . 5 . . . . . . . . . . . . . . . . . . Robots Built . | . . . . . . . . . . . . . . . . . . . . . . . . . . . . . . . . Authchips . | . . . . . . . . . . . . . . . . . . . . . . . . . . . . . . . . Time . | . . . . . . . . . . . . . . . . . . . . . . . . . . . . . . . . Total Robot Build Rating . | . . . . . . . . . . . . . . . . . . . . . . . . . . . . . . . . Part Schematics Acquired 16 | . . . . . . . . . . . . . 10 . . . . 1 . . 4 . 1 . . . . . . . . Parts Built 4 | . . . . . . . . . . . . . . . 1 . . 3 . . . . . . . . . . . . . Authchips 1 | . . . . . . . . . . . . . . . 1 . . . . . . . . . . . . . . . . Time 399 | . . . . . . . . . . . . . . . 152 . . 247 . . . . . . . . . . . . . Total Part Build Rating 20 | . . . . . . . . . . . . . . . 5 . . 15 . . . . . . . . . . . . . Part Studies Acquired 5 | . . . . . . . 3 2 . . . . . . . . . . . . . . . . . . . . . . . Parts Repaired 1 | . . . . . . . . . . 1 . . . . . . . . . . . . . . . . . . . . . Time 43 | . . . . . . . . . . 43 . . . . . . . . . . . . . . . . . . . . . Parts Recycled . | . . . . . . . . . . . . . . . . . . . . . . . . . . . . . . . . Recycled Matter . | . . . . . . . . . . . . . . . . . . . . . . . . . . . . . . . . Retrieved Matter . | . . . . . . . . . . . . . . . . . . . . . . . . . . . . . . . . Retrieved Components . | . . . . . . . . . . . . . . . . . . . . . . . . . . . . . . . . Parts Scanalyzed 1 | . . . . . . . . . . . . . . . . . . . . . . . 1 . . . . . . . . Part Schematics Acquired 1 | . . . . . . . . . . . . . . . . . . . . . . . 1 . . . . . . . . Parts Damaged 1 | . . . . . . . . . . . . . . . . . . . . . . . 1 . . . . . . . . Bothacking | -11 -10 -10 -9 -9 -9 -8 -8 -7 -7 -7 -7 -7 -7 -6 -6 -6 -6 -5 -5 -5 -5 -4 -4 -4 -4 -4 -3 -3 -2 -1 -1 ------------ Run | Yrd Mat Min Mat Min Exi Min Mat Fac Was Fac Low Low Dat Pro Fac Ext Cet Fac Upp Upp Zhi Pro Fac Upp Upp War Pro Res Res Acc Com Used RIF Installer . | . . . . . . . . . . . . . . . . . . . . . . . . . . . . . . . . Robots Hacked 1 | . . . . . . . . . . . . . . . . . . . . . . . . . . . . . . . 1 Non-combat . | . . . . . . . . . . . . . . . . . . . . . . . . . . . . . . . . Combat . | . . . . . . . . . . . . . . . . . . . . . . . . . . . . . . . . Robot Hacks Applied . | . . . . . . . . . . . . . . . . . . . . . . . . . . . . . . . . Manual 1 | . . . . . . . . . . . . . . . . . . . . . . . . . . . . . . . 1 Relay Couplers Released 8 | . . . . . . . . . . . . . . . . . . . . . . . . . . . . . 4 4 . Machine Destruction 4 | . . . . . . . . . . . . . . . . . . . . . . . . . . . . . 4 . . Programmers 4 | . . . . . . . . . . . . . . . . . . . . . . . . . . . . . . 4 . Fabnet Peak Effective % . | . . . . . . . . . . . . . . . . . . . . . . . . . . . . . . . . Robots Rewired 5 | . . . . . . . . . . . . . . . . 5 . . . . . . . . . . . . . . . Allies Hacked . | . . . . . . . . . . . . . . . . . . . . . . . . . . . . . . . . Hacks Repelled . | . . . . . . . . . . . . . . . . . . . . . . . . . . . . . . . . Allies | -11 -10 -10 -9 -9 -9 -8 -8 -7 -7 -7 -7 -7 -7 -6 -6 -6 -6 -5 -5 -5 -5 -4 -4 -4 -4 -4 -3 -3 -2 -1 -1 -------- Run | Yrd Mat Min Mat Min Exi Min Mat Fac Was Fac Low Low Dat Pro Fac Ext Cet Fac Upp Upp Zhi Pro Fac Upp Upp War Pro Res Res Acc Com Total Allies 25 | . . . . . . . . . . . . . . . . 20 5 . . . . . . . . . . . . . . Largest Group 9 | . . . . . . . . . . . . . . . . 9 7 5 . . . . . . . . . . . . . Highest-Rated Group 664 | . . . . . . . . . . . . . . . . 305 664 523 . . . . . . . . . . . . . Highest-Rated Ally 159 | . . . . . . . . . . . . . . . . 159 159 153 . . . . . . . . . . . . . Total Orders 2 | . . . . . . . . . . . . . . . . . . 2 . . . . . . . . . . . . . STAY 1 | . . . . . . . . . . . . . . . . . . 1 . . . . . . . . . . . . . FOLLOW 1 | . . . . . . . . . . . . . . . . . . 1 . . . . . . . . . . . . . Ally Attacks 298 | . . . . . . . . . . . . . . . . 177 48 73 . . . . . . . . . . . . . Total Damage 7621 | . . . . . . . . . . . . . . . . 2910 1926 2785 . . . . . . . . . . . . . Kills 47 | . . . . . . . . . . . . . . . . 22 8 17 . . . . . . . . . . . . . Allies Corrupted . | . . . . . . . . . . . . . . . . . . . . . . . . . . . . . . . . Allies Melted 1 | . . . . . . . . . . . . . . . . . . . . . . . . . . 1 . . . . . Intel | -11 -10 -10 -9 -9 -9 -8 -8 -7 -7 -7 -7 -7 -7 -6 -6 -6 -6 -5 -5 -5 -5 -4 -4 -4 -4 -4 -3 -3 -2 -1 -1 ------- Run | Yrd Mat Min Mat Min Exi Min Mat Fac Was Fac Low Low Dat Pro Fac Ext Cet Fac Upp Upp Zhi Pro Fac Upp Upp War Pro Res Res Acc Com Active Infowar (turns) 11898 | . . . . . . . . . . 34 282 246 39 255 . . . 2 484 629 264 1076 155 920 738 491 333 579 860 2691 1820 Sensors 5421 | . . . . . . . . . . 4 282 246 39 255 . . . 2 484 629 264 1076 . 918 731 491 . . . . . Decoding 4666 | . . . . . . . . . . . . . . . . . . . . . . . 155 . . . . . . 2691 1820 Cloaking 1132 | . . . . . . . . . . . . . . . . . . . . . . . . 250 610 . 272 . . . . Jamming 2382 | . . . . . . . . . . . . . . . . . . . . . . . . . . . 231 579 860 313 399 ECM 30 | . . . . . . . . . . 30 . . . . . . . . . . . . . . . . . . . . . Robot Analysis Total 13 | . 3 . 3 . . . 1 . . . . . . . . . . 2 . . 4 . . . . . . . . . . Derelict Logs Recovered 13 | . . 3 . . . . . . . . 2 1 . 1 . . . . 3 . . . . 1 2 . . . . . . Drone Launches . | . . . . . . . . . . . . . . . . . . . . . . . . . . . . . . . . Drone Recoveries . | . . . . . . . . . . . . . . . . . . . . . . . . . . . . . . . . Decoded 0b10 Intel 77 | . . . . . . . . . . . . . . . . . . . . . . . 3 . . . . . . 47 27 Traps 40 | . . . . . . . . . . . . . . . . . . . . . . . . . . . . . . 25 15 Emergency Access 31 | . . . . . . . . . . . . . . . . . . . . . . . . . . . . . . 19 12 Garrisons 3 | . . . . . . . . . . . . . . . . . . . . . . . 1 . . . . . . 2 . Patrols 1 | . . . . . . . . . . . . . . . . . . . . . . . 1 . . . . . . . . Reinforcements 1 | . . . . . . . . . . . . . . . . . . . . . . . 1 . . . . . . . . Exits 1 | . . . . . . . . . . . . . . . . . . . . . . . . . . . . . . 1 . Exploration | -11 -10 -10 -9 -9 -9 -8 -8 -7 -7 -7 -7 -7 -7 -6 -6 -6 -6 -5 -5 -5 -5 -4 -4 -4 -4 -4 -3 -3 -2 -1 -1 ------------- Run | Yrd Mat Min Mat Min Exi Min Mat Fac Was Fac Low Low Dat Pro Fac Ext Cet Fac Upp Upp Zhi Pro Fac Upp Upp War Pro Res Res Acc Com Turns Passed 30342 | 70 960 1051 1685 415 704 572 1481 614 101 546 283 259 40 284 571 1633 742 1889 619 738 275 1147 2340 1015 826 1179 470 835 1722 2699 2577 Spaces Moved 17727 | 40 474 414 662 158 293 238 733 1025 182 797 518 453 77 419 812 1187 280 980 267 405 145 634 844 598 569 709 327 597 921 1189 780 Core 55 | 4 . . . . . . . . . . . . . . . . . . . . . . . . . . . . . . 51 Treads 8901 | 36 474 414 506 158 293 238 733 24 . . . . . . . 238 280 980 267 405 145 634 722 11 . . . . 425 1189 729 Legs 1843 | . . . . . . . . . . . . . . . . . . . . . . . . . . 423 327 597 496 . . Wheels 1747 | . . . 156 . . . . . . . . . . . . 27 . . . . . . 122 587 569 286 . . . . . Hover . | . . . . . . . . . . . . . . . . . . . . . . . . . . . . . . . . Flight 5181 | . . . . . . . . 1001 182 797 518 453 77 419 812 922 . . . . . . . . . . . . . . . Fastest Speed 39 | 50 160 240 145 240 240 240 158 50 50 50 50 50 50 50 39 39 160 160 160 160 160 160 130 122 107 107 111 112 117 163 50 Average Speed 130 | 149 166 240 219 240 240 240 160 52 50 50 50 50 50 50 41 81 216 160 160 160 160 160 175 134 119 109 111 115 148 165 174 Slowest Speed 640 | 160 240 240 240 240 240 240 162 158 50 50 50 50 50 50 50 240 240 160 160 160 160 160 305 640 122 111 111 120 248 241 275 Overloaded Moves . | . . . . . . . . . . . . . . . . . . . . . . . . . . . . . . . . Propulsion Burnouts . | . . . . . . . . . . . . . . . . . . . . . . . . . . . . . . . . Robots Hopped 7 | . . . . . . . . . . 2 . . . . 1 4 . . . . . . . . . . . . . . . Potential Cave-ins 2 | . . . . . . . . . . . . . . . . . . . . . . . 2 . . . . . . . . Cave-ins Triggered . | . . . . . . . . . . . . . . . . . . . . . . . . . . . . . . . . Exploration Rate (%) 54 | 3 89 95 65 45 68 68 54 30 82 21 64 65 68 47 28 94 77 18 52 65 60 74 28 65 65 73 55 15 31 31 35 Regions Visited 31 Branch Regions 19 Pre-discovered Areas 14 | . 2 1 2 . 1 . . . . . . . 1 1 . . . . . . 3 . . 1 . 2 . . . . . Known Exits Taken 18 | . . . . . . . . . . 1 1 1 1 1 1 . . 1 1 1 1 1 1 1 1 1 1 1 . 1 . Unknown Exits Taken 11 | 1 1 1 1 1 1 1 1 . . . . . . . . 1 1 . . . . . . . . . . . 1 . . Scrap Searched 21 | . . 1 . 2 . 2 . . . . . . . 1 . . . . 1 1 . 3 . 4 2 . 4 . . . . Spaces Dug 171 | . . . . . . . . 8 . 8 . . . . 17 . . 29 . 1 . 2 35 1 2 . . 6 9 35 18 Terrain Destroyed 812 | . . . . . . . . 8 . 8 36 18 . 136 18 55 9 33 2 51 . 175 95 10 9 5 1 6 32 73 32 Melee 29 | . . . . . . . . 8 . 8 . . . . 13 . . . . . . . . . . . . . . . . Projectile 237 | . . . . . . . . . . . . . . . 5 5 9 33 2 1 . 3 56 10 9 5 1 6 10 50 32 AOE 546 | . . . . . . . . . . . 36 18 . 136 . 50 . . . 50 . 172 39 . . . . . 22 23 . Terrain Rammed . | . . . . . . . . . . . . . . . . . . . . . . . . . . . . . . . . Walls Destroyed . | . . . . . . . . . . . . . . . . . . . . . . . . . . . . . . . . Machines Disabled . | . . . . . . . . . . . . . . . . . . . . . . . . . . . . . . . . Actions | -11 -10 -10 -9 -9 -9 -8 -8 -7 -7 -7 -7 -7 -7 -6 -6 -6 -6 -5 -5 -5 -5 -4 -4 -4 -4 -4 -3 -3 -2 -1 -1 --------- Run | Yrd Mat Min Mat Min Exi Min Mat Fac Was Fac Low Low Dat Pro Fac Ext Cet Fac Upp Upp Zhi Pro Fac Upp Upp War Pro Res Res Acc Com Total 23474 | 48 558 442 794 187 297 240 911 1081 191 923 529 469 77 472 1014 1756 396 1216 404 461 176 725 1457 731 661 1087 384 708 1186 1905 1988 Wait 3190 | . 16 13 47 26 . . 65 12 2 109 2 3 . 31 160 384 16 158 102 27 . 47 416 59 49 272 8 37 113 429 587 Move 17683 | 39 473 413 661 157 292 237 732 1025 181 792 517 452 76 418 809 1179 279 979 266 404 144 633 843 597 568 708 326 596 920 1188 779 Hop 6 | . . . . . . . . . . 2 . . . . 1 3 . . . . . . . . . . . . . . . Pick Up 216 | 3 9 . 13 . 1 1 11 9 3 3 . 1 . . 5 19 29 9 1 1 4 . 10 9 2 14 5 12 15 7 20 Fast Attach 121 | 6 5 . 3 . . . 2 3 1 1 . . . . 3 8 13 4 . . 6 . 14 12 2 7 . 2 9 4 16 Attach 128 | . 2 . 6 . . 1 5 7 . 2 . . . . 3 6 4 2 2 1 2 . 18 8 . 13 2 8 10 4 22 Detach 32 | . . . 1 . . . . 1 . . . . . . . 2 7 . . . . . 3 2 1 5 . . 2 . 8 Swap 230 | . 4 1 3 . . . 10 . 1 2 5 5 1 10 3 16 8 3 6 10 1 16 10 3 15 18 11 10 21 27 10 Drop 244 | . 3 . 7 . 4 1 19 11 3 2 . 1 . . 5 13 26 13 1 . 7 . 10 5 . 30 7 16 35 11 14 Fire 1476 | . 46 15 53 4 . . 67 . . . 4 2 . 10 5 35 14 48 26 18 12 29 133 36 24 20 25 27 61 235 527 Melee 76 | . . . . . . . . 13 . 10 1 5 . 3 14 30 . . . . . . . . . . . . . . . Ram . | . . . . . . . . . . . . . . . . . . . . . . . . . . . . . . . . Kick . | . . . . . . . . . . . . . . . . . . . . . . . . . . . . . . . . Crush . | . . . . . . . . . . . . . . . . . . . . . . . . . . . . . . . . Escape Stasis 62 | . . . . . . . . . . . . . . . 6 56 . . . . . . . . . . . . . . . Rewire 10 | . . . . . . . . . . . . . . . . 5 . . . . . . . . . . . . . . 5 Trap . | . . . . . . . . . . . . . . . . . . . . . . . . . . . . . . . . Miscellaneous . | . . . . . . . . . . . . . . . . . . . . . . . . . . . . . . . . Route ------- -11/Scrapyard -10/Materials (discovered 5 exits: *Mat x3 / [*Min x2]) -10/Mines (discovered 2 exits: *Mat x2) -9/Materials (discovered 3 exits: *Mat / [*Min] / [*Sto]) -9/Mines -9/Exiles -8/Mines -8/Materials -7/Factory (discovered 2 exits: Low x2) -7/Waste -7/Factory -7/Lower Caves -7/Lower Caves (discovered 2 exits: *Fac / *Dat) -7/Data Miner -6/Proximity Caves -6/Factory (discovered 3 exits: *Fac / *Low / *Ext) -6/Extension (discovered 2 exits: *Fac / *Cet) -6/Cetus (discovered 2 exits: *Fac / [*Arc]) -5/Factory (discovered 2 exits: *Upp x2) -5/Upper Caves -5/Upper Caves -5/Zhirov -4/Proximity Caves -4/Factory (discovered 3 exits: *Upp x2 / Arm) -4/Upper Caves -4/Upper Caves (discovered 2 exits: *Res / *War) -4/Warlord -3/Proximity Caves -3/Research (discovered 3 exits: *Res / Tes x2) -2/Research -1/Access -1/Command (discovered 2 exits: *Sur x2) To Epsilon Eridani History --------- Turn | Location | Event 5 | -11/Scrapyard | Discovered new exit (range 14) 71 | -11/Scrapyard | Entered Materials 229 | -10/Materials | Discovered new exit (range 3) 305 | -10/Materials | Build established: Mutant 322 | -10/Materials | Discovered new exit (range 16) 419 | -10/Materials | Discovered new exit (range 5) 435 | -10/Materials | Discovered new exit (range 8) 735 | -10/Materials | Discovered new exit (range 12) 812 | -10/Materials | Core integrity fell below 50% 1031 | -10/Materials | Entered Mines 1199 | -10/Mines | Assembled infested the area 1214 | -10/Mines | Learned Materials terminal intel 1248 | -10/Mines | Learned Materials emergency access door positions 1346 | -10/Mines | Learned Materials terminal intel 1676 | -10/Mines | Discovered new exit (range 9) 1854 | -10/Mines | Discovered new exit (range 5) 2082 | -10/Mines | Entered Materials 2082 | -9/Materials | Evolved 2 slots: Utility x2 2084 | -9/Materials | Loaded intel: 12 terminal locations 2477 | -9/Materials | Discovered new exit (range 8) 2546 | -9/Materials | Lost 3 parts (1p2n) 3266 | -9/Materials | Core integrity fell below 50% 3399 | -9/Materials | Discovered new exit (range 13) 3532 | -9/Materials | Discovered new exit (range 15) 3767 | -9/Materials | Entered Mines 4063 | -9/Mines | Excavation squad dispatched 4063 | -9/Mines | A large section of the Mines collapsed 4170 | -9/Mines | Deemed a non-threat by the Exiles lab entrance 4170 | -9/Mines | Discovered new exit (range 5) 4182 | -9/Mines | Entered Exiles 4238 | -9/Exiles | Met 8R-AWN 4283 | -9/Exiles | Met EX-HEX 4374 | -9/Exiles | Met EX-DEC 4389 | -9/Exiles | Learned location of Zion (-6) 4427 | -9/Exiles | Met EX-BIN 4461 | -9/Exiles | Aligned with FarCom system 4463 | -9/Exiles | Given EX-Vault access code 4521 | -9/Exiles | Opened EX-Vault 4544 | -9/Exiles | Found Flying Fortress v7 4593 | -9/Exiles | Warned to stay clear of 0b10 Research branches 4862 | -9/Exiles | Discovered new exit (range 10) 4886 | -9/Exiles | Left Exiles lab with Flying Fortress v7 4886 | -9/Exiles | Entered Mines 5270 | -8/Mines | Discovered new exit (range 6) 5458 | -8/Mines | Entered Materials 5458 | -8/Materials | Evolved 2 slots: Propulsion x2 5459 | -8/Materials | Loaded intel: 10 terminal locations 6910 | -8/Materials | Discovered new exit (range 16) 6939 | -8/Materials | Entered Factory 6939 | -7/Factory | Evolved 2 slots: Power x1, Utility x1 7268 | -7/Factory | Build established: Hacker-Mutant 7335 | -7/Factory | Identified exit to Lower Caves 7553 | -7/Factory | Manually triggered Chute Trap 7553 | -7/Factory | Sucked down chute 7553 | -7/Factory | Entered Waste 7563 | -7/Waste | Spotted C-40 Crusher 7568 | -7/Waste | EMP discharged 7572 | -7/Waste | Spotted C-40 Crusher 7578 | -7/Waste | Spotted C-40 Crusher 7588 | -7/Waste | Spotted C-40 Crusher 7588 | -7/Waste | Spotted C-40 Crusher 7598 | -7/Waste | Spotted C-40 Crusher 7642 | -7/Waste | Crushed by Compactor (0 parts destroyed, 1 dropped) 7646 | -7/Waste | Discovered new exit (range 15) 7654 | -7/Waste | Entered Factory 7731 | -7/Factory | Repaired Broken Nanoactuators 7952 | -7/Factory | Build established: Hacker-Gladiator 8081 | -7/Factory | Discovered exit to Lower Caves (range 15) 8200 | -7/Factory | Entered Lower Caves 8240 | -7/Lower Caves | Encountered a Warlord checkpoint 8251 | -7/Lower Caves | Learned Factory machine intel 8313 | -7/Lower Caves | Learned Factory security intel 8316 | -7/Lower Caves | Destroyed 7 combat bots 8457 | -7/Lower Caves | Discovered new exit (range 15) 8481 | -7/Lower Caves | Identified exit to Lower Caves 8483 | -7/Lower Caves | Entered another Lower Caves area 8531 | -7/Lower Caves | Identified exit to Data Miner 8532 | -7/Lower Caves | Discovered new exit (range 15) 8534 | -7/Lower Caves | Build established: Hacker-Mutant 8537 | -7/Lower Caves | Encountered a Warlord checkpoint 8742 | -7/Lower Caves | Entered Data Miner 8742 | -7/Data Miner | Discovered new exit (range 6) 8752 | -7/Data Miner | Met Data Miner 8762 | -7/Data Miner | Learned location of Section 7 (-2) 8762 | -7/Data Miner | Acquired the access code to Warlord's prototype stash 8770 | -7/Data Miner | Received God Mode back door access code from Data Miner 8780 | -7/Data Miner | Identified exit to Proximity Caves 8782 | -7/Data Miner | Entered Proximity Caves 9064 | -6/Proximity Caves | Discovered new exit (range 6) 9066 | -6/Proximity Caves | Identified exit to Factory 9066 | -6/Proximity Caves | Entered Factory 9066 | -6/Factory | Evolved 2 slots: Propulsion x1, Utility x1 9068 | -6/Factory | Loaded intel: 277 machine locations 9348 | -6/Factory | Discovered new exit (range 5) 9349 | -6/Factory | Identified exit to Lower Caves 9593 | -6/Factory | Fabricated Lgt. Regenerative Plating (x1) 9622 | -6/Factory | Discovered new exit (range 11) 9634 | -6/Factory | Discovered new exit (range 9) 9636 | -6/Factory | Identified exit to Extension 9637 | -6/Factory | Entered Extension 9658 | -6/Extension | Rescued a captive Derelict 9695 | -6/Extension | Rescued a captive Derelict 9699 | -6/Extension | Rescued a captive Derelict 9768 | -6/Extension | Rescued a captive Derelict 9802 | -6/Extension | Rescued a captive Derelict 10116 | -6/Extension | Spotted B-75 Beast 10140 | -6/Extension | Destroyed B-75 Beast 10165 | -6/Extension | Lost 4 allies 10169 | -6/Extension | Spotted B-75 Beast 10190 | -6/Extension | Rescued a captive Derelict 10192 | -6/Extension | Rescued a captive Derelict 10285 | -6/Extension | Rescued a captive Derelict 10286 | -6/Extension | Rescued a captive Derelict 10298 | -6/Extension | Rescued a captive Derelict 10312 | -6/Extension | Rescued a captive Derelict 10313 | -6/Extension | Rescued a captive Derelict 10317 | -6/Extension | Rescued a captive Derelict 10384 | -6/Extension | Rescued a captive Derelict 10393 | -6/Extension | Discovered new exit (range 10) 10394 | -6/Extension | Discovered new exit (range 6) 10599 | -6/Extension | Allies destroyed B-75 Beast 10624 | -6/Extension | Lost 3 allies 10744 | -6/Extension | Lost 4 allies 10793 | -6/Extension | Rescued A7 10933 | -6/Extension | Build established: Scavenger-Mutant 11037 | -6/Extension | First assault squad dispatched 11270 | -6/Extension | Entered Cetus 11270 | -6/Cetus | Accompanied by 6 allies (A7) 11275 | -6/Cetus | Acquired a Cetus Manufacturing Module code from A7 11299 | -6/Cetus | Spotted Cetus Guard 11300 | -6/Cetus | Spotted Cetus Guard 11304 | -6/Cetus | Spotted Cetus Guard 11310 | -6/Cetus | Spotted Cetus Guard 11317 | -6/Cetus | Allies destroyed Cetus Guard 11321 | -6/Cetus | Allies destroyed Cetus Guard 11322 | -6/Cetus | Allies destroyed Cetus Guard 11328 | -6/Cetus | Allies destroyed Cetus Guard 11346 | -6/Cetus | Lost 4 allies 11423 | -6/Cetus | Started Cetus Manufacturing Module 11448 | -6/Cetus | Manufactured an Enhanced Grunt 11466 | -6/Cetus | Escorted A7 to Cetus Mainframe 11473 | -6/Cetus | Manufactured an Enhanced Grunt 11498 | -6/Cetus | Manufactured an Enhanced Grunt 11523 | -6/Cetus | Manufactured an Enhanced Grunt 11548 | -6/Cetus | Manufactured an Enhanced Grunt 11761 | -6/Cetus | Discovered new exit (range 16) 11803 | -6/Cetus | Spotted Cetus Guard 11803 | -6/Cetus | Spotted Cetus Guard 11805 | -6/Cetus | Spotted Cetus Guard 11807 | -6/Cetus | Spotted Cetus Guard 11810 | -6/Cetus | Allies destroyed Cetus Guard 11819 | -6/Cetus | Allies destroyed Cetus Guard 11829 | -6/Cetus | Destroyed Cetus Guard 11832 | -6/Cetus | Allies destroyed Cetus Guard 11840 | -6/Cetus | Discovered new exit (range 16) 11855 | -6/Cetus | Met Revision 17 11896 | -6/Cetus | System corruption reached 10% 11911 | -6/Cetus | System corruption reached 30% 11955 | -6/Cetus | Found Prototype Device 11955 | -6/Cetus | Identified Exp. Thermal Shield 12012 | -6/Cetus | Entered Factory 12012 | -5/Factory | Accompanied by 5 allies (A7) 12012 | -5/Factory | Evolved 2 slots: Propulsion x1, Utility x1 12017 | -5/Factory | Received a hacking code to weaken MAIN.C 12565 | -5/Factory | Identified exit to Upper Caves 12814 | -5/Factory | Fabricated Imp. Cryofiber Web (x2) 12898 | -5/Factory | Incoming investigation squad redirected 13031 | -5/Factory | Fabricated Exp. Targeting Computer? 13064 | -5/Factory | Lost 3 allies 13901 | -5/Factory | Entered Upper Caves 13908 | -5/Upper Caves | Learned Factory terminal intel 13967 | -5/Upper Caves | Spotted B-75 Beast 14011 | -5/Upper Caves | Destroyed B-75 Beast 14041 | -5/Upper Caves | Identified exit to Upper Caves 14275 | -5/Upper Caves | Learned Factory emergency access door positions 14285 | -5/Upper Caves | Ambushed by wild Derelicts 14520 | -5/Upper Caves | Entered another Upper Caves area 15012 | -5/Upper Caves | Encountered a Warlord checkpoint 15190 | -5/Upper Caves | Discovered new exit (range 9) 15201 | -5/Upper Caves | Identified exit to Zhirov 15258 | -5/Upper Caves | Entered Zhirov 15258 | -5/Zhirov | Discovered new exit (range 3) 15287 | -5/Zhirov | Met Zhirov 15318 | -5/Zhirov | Learned location of Testing (-3) 15318 | -5/Zhirov | Learned location of Quarantine (-2) 15318 | -5/Zhirov | Learned location of Command (-1) 15332 | -5/Zhirov | Zhirov requested help retrieving the SGEMP Prototype 15358 | -5/Zhirov | Found Alien Artifact 15358 | -5/Zhirov | Identified Integrated Dissipator 15358 | -5/Zhirov | Installed Integrated Dissipator, increased core heat dissipation (+20) 15530 | -5/Zhirov | Identified exit to Proximity Caves 15533 | -5/Zhirov | Entered Proximity Caves 15784 | -4/Proximity Caves | Encountered a Derelict sapper outpost 16657 | -4/Proximity Caves | Discovered new exit (range 12) 16677 | -4/Proximity Caves | Attracted the attention of an 0b10 checkpoint 16679 | -4/Proximity Caves | Identified exit to Factory 16680 | -4/Proximity Caves | Entered Factory 16680 | -4/Factory | Evolved 2 slots: Utility x2 16682 | -4/Factory | Loaded intel: 23 terminal locations 16790 | -4/Factory | Watched by a mysterious "MATRIX" hacker 16865 | -4/Factory | Garrison activated, responded to threat 16984 | -4/Factory | Found Prototype Launcher 16984 | -4/Factory | Identified Com. Tesla Bomb Launcher 17232 | -4/Factory | Build established: Hacker-Mutant 17719 | -4/Factory | Discovered new exit (range 14) 18546 | -4/Factory | Lost 5 parts (1p3n1u) 18806 | -4/Factory | Identified exit to Upper Caves 18806 | -4/Factory | Identified exit to Armory 18884 | -4/Factory | System corruption reached 10% 18924 | -4/Factory | Lost 6 parts (2p1n1u2w) 19002 | -4/Factory | Lost 3 parts (1n2u) 19020 | -4/Factory | Entered Upper Caves 19049 | -4/Upper Caves | Spotted B-86 Titan 19063 | -4/Upper Caves | Encountered a Warlord checkpoint 19091 | -4/Upper Caves | Found DCF Scrap (15 items) 19182 | -4/Upper Caves | Build established: Scavenger-Mutant 19188 | -4/Upper Caves | Lost 3 allies 19527 | -4/Upper Caves | Found Alien Artifact 19527 | -4/Upper Caves | Identified Core Expander 19527 | -4/Upper Caves | Installed Core Expander, added new Propulsion slot 19741 | -4/Upper Caves | Lost 4 parts (1p1n2u) 19796 | -4/Upper Caves | Discovered new exit (range 9) 19805 | -4/Upper Caves | Identified exit to Upper Caves 20035 | -4/Upper Caves | Entered another Upper Caves area 20045 | -4/Upper Caves | Discovered new exit (range 14) 20172 | -4/Upper Caves | Identified exit to Research 20204 | -4/Upper Caves | Attracted the attention of an 0b10 checkpoint 20829 | -4/Upper Caves | Learned location of 1 exit from Research 20830 | -4/Upper Caves | Discovered new exit (range 7) 20860 | -4/Upper Caves | Identified exit to Warlord 20861 | -4/Upper Caves | Entered Warlord 20900 | -4/Warlord | System corruption cleaned by Quarantine Array 21141 | -4/Warlord | Met Warlord 21166 | -4/Warlord | Warlord's base attacked by MAIN.C 21190 | -4/Warlord | Learned 4 Research zone layouts 21190 | -4/Warlord | Learned 4 Access zone layouts 21191 | -4/Warlord | Learned Research terminal intel 21191 | -4/Warlord | Learned Research fabricator intel 21191 | -4/Warlord | Learned Research repair station intel 21191 | -4/Warlord | Learned Armory terminal intel 21203 | -4/Warlord | Opened Warlord's prototype stash 21208 | -4/Warlord | Found Prototype Processor 21208 | -4/Warlord | Identified Exp. Target Analyzer 21217 | -4/Warlord | Found Prototype Device 21217 | -4/Warlord | Identified Exp. Phase Shifter 21241 | -4/Warlord | Found Prototype Reactor 21516 | -4/Warlord | Warlord forces counterattacked 21599 | -4/Warlord | Lost 11 allies 21601 | -4/Warlord | Spotted Executioner 21638 | -4/Warlord | Spotted Striker 21659 | -4/Warlord | Spotted Executioner 21669 | -4/Warlord | Spotted Executioner 21686 | -4/Warlord | Spotted Striker 21691 | -4/Warlord | P-80 Master assimilated allied 6I-6G1(M) 21739 | -4/Warlord | Lost 16 allies 21833 | -4/Warlord | Identified Vortex Chain Reactor 21835 | -4/Warlord | Spotted B-90 Cyclops 21841 | -4/Warlord | Warlord base infiltrated, sounded retreat 21908 | -4/Warlord | Lost 3 allies 21931 | -4/Warlord | Spotted Striker 21985 | -4/Warlord | Lost 3 allies 21992 | -4/Warlord | Spotted B-86 Titan 21992 | -4/Warlord | Spotted Executioner 21994 | -4/Warlord | Spotted B-90 Cyclops 22024 | -4/Warlord | Discovered new exit (range 15) 22039 | -4/Warlord | Identified exit to Proximity Caves 22040 | -4/Warlord | Entered Proximity Caves 22042 | -3/Proximity Caves | Lost 4 allies 22278 | -3/Proximity Caves | Spotter reported a threat 22313 | -3/Proximity Caves | Spotter reported a threat 22473 | -3/Proximity Caves | Attracted the attention of an 0b10 checkpoint 22510 | -3/Proximity Caves | Entered Research 22510 | -3/Research | Evolved 2 slots: Power x1, Propulsion x1 22511 | -3/Research | Identified exit to Testing 22512 | -3/Research | Identified exit to Research 22514 | -3/Research | Loaded intel: 22 terminal locations 22515 | -3/Research | Loaded intel: 4 fabricator locations 22516 | -3/Research | Loaded intel: 4 repair station locations 22710 | -3/Research | Revision forces began assault on 0b10 22726 | -3/Research | Met up with Revision 17++ 22891 | -3/Research | Discovered exit to Testing (range 14) 23210 | -3/Research | Research terminal network offline 23345 | -3/Research | Entered another Research area 23345 | -2/Research | Warlord forces began assault on 0b10 23345 | -2/Research | Evolved 2 slots: Utility x2 23455 | -2/Research | Research machine network offline 23673 | -2/Research | Met up with Warlord 23864 | -2/Research | Borebot progress halted 23930 | -2/Research | Borebot progress halted 24041 | -2/Research | Borebot progress halted 24049 | -2/Research | Spotted Striker 24049 | -2/Research | Spotted Striker 24068 | -2/Research | Discovered new exit (range 15) 24117 | -2/Research | Found Quantum Capacitor 24158 | -2/Research | Spotted Striker 24166 | -2/Research | Destroyed Striker 24195 | -2/Research | Spotted Striker 24227 | -2/Research | Destroyed Striker 24250 | -2/Research | Found Prototype Protection 24250 | -2/Research | Identified Centrium Heavy Armor Plating 24256 | -2/Research | Destroyed 14 combat bots 24279 | -2/Research | Found Megatreads 24753 | -2/Research | Spotted Striker 24756 | -2/Research | Spotted Striker 24793 | -2/Research | Lost 3 allies 24793 | -2/Research | Destroyed Striker 24826 | -2/Research | Warlord invited to help at Command 24826 | -2/Research | Given Cave Seal Controls access code 24982 | -2/Research | Warlord destroyed during the assault 25067 | -2/Research | Entered Access 25067 | -1/Access | Evolved 2 slots: Utility x2 25290 | -1/Access | Lost 5 allies 25737 | -1/Access | Destroyed 9 combat bots 26567 | -1/Access | First assault squad dispatched 26591 | -1/Access | Incoming assault squad redirected 27085 | -1/Access | Incoming assault squad redirected 27399 | -1/Access | Identified exit to Command 27461 | -1/Access | System corruption reached 10% 27766 | -1/Access | Entered Command 28016 | -1/Command | First assault squad dispatched 28036 | -1/Command | Incoming assault squad redirected 28039 | -1/Command | Incoming assault squad redirected 28242 | -1/Command | Disengaged cave seal 28242 | -1/Command | Wild derelicts emerged from the dark tunnel 28389 | -1/Command | Destroyed 8 combat bots 28404 | -1/Command | Found Corrupted Quantum Capacitor 28640 | -1/Command | System corruption reached 30% 28786 | -1/Command | Incoming assault squad redirected 28788 | -1/Command | Incoming assault squad redirected 28997 | -1/Command | Spotted Combat Programmer 28997 | -1/Command | Spotted Combat Programmer 29007 | -1/Command | Spotted M Guard 29008 | -1/Command | Destroyed Combat Programmer 29009 | -1/Command | Spotted M Guard 29092 | -1/Command | Destroyed M Guard 29092 | -1/Command | All MAIN.C guards destroyed 29107 | -1/Command | Lost 14 parts (3p4n6u1w) 29590 | -1/Command | Met MAIN.C 29594 | -1/Command | Hacked MAIN.C using A7's code 29614 | -1/Command | 0b10 Conduit disabled 29733 | -1/Command | Destroyed MAIN.C Shell 29734 | -1/Command | Surrendered to MAIN.C 29734 | -1/Command | Loaded intel: 52 machine locations 29734 | -1/Command | Loaded intel: 95 trap records 29734 | -1/Command | Identified exit to Surface 29734 | -1/Command | Discovered exit to Surface (range 44) 29734 | -1/Command | Discovered exit to Surface (range 86) 30218 | -1/Command | MAIN.C activated Command garrisons 30257 | -1/Command | Unknown forces attacked Command 30257 | -1/Command | Spotted EQ-017 30257 | -1/Command | Spotted EQ-006 30257 | -1/Command | Spotted EQ-003 30257 | -1/Command | Spotted EQ-001 30257 | -1/Command | Spotted EQ-000 30262 | -1/Command | Spotted EQ-005 30269 | -1/Command | Spotted EQ-004 30318 | -1/Command | Released all parts (15) 30322 | -1/Command | Core integrity fell below 50% 30333 | -1/Command | Spotted EQ-016 30336 | -1/Command | Lost 9 allies 30343 | *** | Escaped! Last Messages --------------- 30318_ Released Exp. Targeting Computer. 30318_ Released Quantum Capacitor. 30318_ Quantum Capacitor crushed and broken. 30318_ Released Adv. Heat Sink. 30318_ Adv. Heat Sink crushed and broken. 30318_ Released Adv. Focal Shield. 30318_ Adv. Focal Shield crushed and broken. 30318_ Released Rnf. Antimatter Reactor. 30318_ Rnf. Antimatter Reactor crushed and broken. 30318_ Released Graphene Brace. 30318_ Graphene Brace crushed and broken. 30318_ Released Enh. Nova Cannon. 30318_ Enh. Nova Cannon crushed and broken. 30323_ Slug penetrates Wall. 30327_ R-10 Processor destroyed. 30331_ Slug penetrates Wall. 30333_ System corrupted: Matter fused (-5). 30334_ Acquired 16 matter. 30335_ Acquired 5 matter. Map ----- +----------------------------------------------------+ | """## #????????????????????????#?######## | | """## "" #?????????##############?#?#""""""" | | """## """" #?????????# #?#?#" | | """""## """" #?????????# #?#?#""""" | | ####### "" #?????????# """" #?#?#"""" "" | | # #?????????# """" #?#?#" " | | # ########### """" #?#?#"" """ | | %+ # + ! """" #?#?#"" "" | | # "" # " %*[%= #?#?# " "" | | ####/## "" # "" # %== #?#?# " % | | + "Y # """" # =%*%% #?#?# " % | | #### # "" + """" # = % #?#?#" " | | ???# + "" # "" # %* #?#?#"" % | | ???# # # # =% * #?#?# % | | ???# # # ####"!%#######?#?# | | ???# #"######+######+####### *!###"##### % | | ?### !!%!= % !!!*!!*%%[* % | | ?# %!!% =%!!=!===%%%% | | ?# == !=|]!=[=![ " | | #### ################# *=##!###### " "" | | !# ""## #?????##########??#?# " "" | | # ""## #?????????????????#?# "" | | # T## #?????????????????#?######## | | # BB ""## ######????????????#????????? | | # BB%""## ## #????????????########## | | + ""######+##### @ #?????????????????????? | | # % #?????????????????????? | | # #?????????????????????? | | # %! ################?????????????????????? | | #########+#####??????????????????????????????????? | | ????# #??????????????????????????????????? | | ????# #??????????????????????????????????? | | ????# """" #??????????????????????????????????? | | ????# """" #??????????????????????????????????? | | ????# """" #??????????????????????????????????? | | ????# """" !#??????????????????????????????????? | | ????# #??????????????????????????????????? | | ????# #??????????????????????????????????? | | ????###########??????????????????????????????????? | | ?????????????????????????????????????????????????? | | ?????????????????????????????????????????????????? | | ?????????????????????????????????????????????????? | | ?????????????????????????????????????????????????? | | ?????????????????????????????????????????????????? | | ?????????????????????????????????????????????????? | | ?????????????????????????????????????????????????? | | ?????????????????????????????????????????????????? | | ?????????????????????????????????????????????????? | | ?????????????????????????????????????????????????? | | ?????????????????????????????????????????????????? | +----------------------------------------------------+ Best States ------------- Heat Dissipation 163 Energy Generation 96 Energy Capacity 950 Matter Stores 300 Matter Capacity 300 Sight Range 16 Robot Scan Range 15 Terrain Scan Density 10 ECM Strength 2 Jamming Range 12 Cloak Strength 3 Power Amplification 30 Base Temperature (-) 150 Corruption Block 8 Armor Coverage 1200 Resistance: KI 30 Resistance: TH 30 Propulsion Shielding 66 Phase Shifting 20 Evasion (%) 98 Targeting Accuracy 12 Melee Accuracy 6 Target Analysis 12 Recoil Reduction 8 Energy Filtering 50 Particle Charging 25 Offensive Hacking 40 Defensive Hacking 22 Authchip Count 1 Item Schematics ----------------- Combat Drone Bay | -7/Data Miner | Free Lgt. Regenerative Plating | -7/Data Miner | Free Biomechanical Wings | -7/Data Miner | Free Exp. Targeting Computer | -7/Data Miner | Free Scatter Rocket Array | -7/Data Miner | Free Field Propulsion Drive | -7/Data Miner | Free Imp. Shock Absorption System | -7/Data Miner | Free Wave Gun | -7/Data Miner | Free Hvy. Flak Cannon | -7/Data Miner | Free Disruptor Cannon | -7/Data Miner | Free Imp. Cryofiber Web | -5/Factory | Hacked Assault Drone Bay | -5/Zhirov | Free Exp. Optical Array | -5/Zhirov | Free Exp. Heat Sink | -5/Zhirov | Free Imp. Arc Thrower | -5/Zhirov | Free Centrium Heavy Treads | -4/Factory | Scanalyzed Robot Schematics ------------------ A-15 Conveyor | -7/Data Miner | Free S-27 Virus | -7/Data Miner | Free Y-54 Guardian | -7/Data Miner | Free R-10 Processor | -7/Data Miner | Free L-41 Fighter | -7/Data Miner | Free Fabricated ------------ Lgt. Regenerative Plating | x1 | -6/Factory | Authchip Imp. Cryofiber Web | x2 | -5/Factory Exp. Targeting Computer | x1 | -5/Factory Repaired ---------- Nanoactuators | 15% | -7/Factory | Broken Studied --------- Lgt. Deuterium Engine | -8/Materials | Hacked Rocket Launcher | -8/Materials | Hacked Particle Cannon | -8/Materials | Hacked Xenon Bombardment Thruster | -7/Factory | Hacked Great Axe | -7/Factory | Hacked Alien Tech Used ----------------- Integrated Dissipator Core Expander Achievements -------------- None Challenges ------------ None Game ------ Seed GravityDrainedBank Manual? 0 Play Time 05:31:58 Cumulative 295.2 hours Start 2026.08.21 @ 00:15:09 End 2026.08.21 @ 06:04:00 Sessions 3 Manual Loads 0 Difficulty Rogue Special Mode None Game No. 276 Rogue 222 Adventurer 54 Explorer 0 Win Type 0 Total 12 Types 8/0/1/1/0/0/0/1/0/1 Lore% 77 Gallery% 66 Achievement% 61 Wizard Run 0 Options --------- Layout 1 ASCII 0 Keyboard 0 Movement Mouse Keybinds 1 Fullscreen 2 Font 32/Tamsyn Map View 50x35 Zoom Use 0% Tactical HUD 1 Map Filters NONE Filters NONE Steam 1 RUN: 786eb236-cff6-41e1-8f9c-0c26a91e3d6c